Workbook

Sheet Introduction
A1: INTRODUCTION
B4: Pilot dashboard on protection gap for natural catatrophes*
B6: Measure of the protection gap in Europe:
B7: - historical protection gap: based on differences observed between economic and insured historical losses
B8: - estimate of today's protection gap: derived by combining the hazard, vulnerability, exposure and insurance coverage
B10: 2 views:
B12: -Dashboard
B13: Tab "Dashboard"
B15: 2. Statistics
B16: Tab "Summary statistics"
B18: 3. Map view
B19: Tab "Map view"
B21: -Underlying data | C21: Overview of sources
B22: Tab "Historical protection gap" | C22: MunichRe and Swiss Re
B23: Tab "Exposure_Hazard" | C23: Risk Data Hub, ESPON and WISC data
B24: Tab "Vulnerability" | C24: Academic data
B25: Tab "Insurance coverage" | C25: Expert judgement and EIOPA data
B26: GDP
B27: Country area
B29: Additional documentation available:
B30: Pilot dashboard on the insurance protection gap for natural catastrophes: Technical description
B31: Pilot dashboard on insurance protection gap for natural catastrophes in a nutshell
B33: *EIOPA acknowledges the limitations of the pilot version of the dashboard, which was developed, based on publicly available data and expert judgement. The main goal of the pilot dashboard is to establish a framework for identifying key risk drivers for the protection gap for natural catastrophes and for collecting relevant evidence and data. The methodology for deriving the relevant scoring, as well as the existence of data gaps will be subject to review and will be updated based on further evidence and discussion in the future. Views from stakeholders on the methodology, data used in the dashboard are welcome until 31st of March 2020 using the EU survey. Questions on the dashboard are also welcome to be sent to protection_gap_dashboard@eiopa.europa.eu.

Sheet Dashboard
A1: DASHBOARD
B3: Historical Protection gap | C3: Estimate of protection gap today | E3: Historical Protection gap | G3: Estimate of protection gap today | H3: Exposure to hazard | I3: Vulnerability | J3: Insurance coverage | L3: Historical Protection gap | N3: Estimate of protection gap today | O3: Exposure to hazard | P3: Vulnerability | Q3: Insurance coverage | S3: Historical Protection gap | U3: Estimate of protection gap today | V3: Exposure to hazard | W3: Vulnerability | X3: Insurance coverage | Z3: Historical Protection gap | AB3: Estimate of protection gap today | AC3: Exposure to hazard | AD3: Vulnerability | AE3: Insurance coverage
A4: COUNTRY | B4: All Peril | E4: Earthquake | L4: Flood | S4: Wildfire | Z4: Windstorm
A5: EU | B5: =MROUND((Z5+S5+L5+E5)/4,0.1) -> 1.4 | C5: =MROUND((AB5+U5+N5+G5)/4,1) -> 1 | E5: =MROUND(AVERAGE(E6:E35),0.1) -> 0.9 | G5: =MROUND(AVERAGE(G6:G35),1) -> 1 | H5: =MROUND(AVERAGE(H6:H35),1) -> 1 | I5: =MROUND(AVERAGE(I6:I35),1) -> 4 | J5: =MROUND(AVERAGE(J6:J35),1) -> 3 | L5: =MROUND(AVERAGE(L6:L35),0.1) -> 1.5 | N5: =MROUND(AVERAGE(N6:N35),1) -> 1 | O5: =MROUND(AVERAGE(O6:O35),1) -> 2 | P5: n/a | Q5: =MROUND(AVERAGE(Q6:Q35),1) -> 2 | S5: =MROUND(AVERAGE(S6:S35),0.1) -> 1.7 | U5: =MROUND(AVERAGE(U6:U35),0.1) -> 1.6 | V5: =MROUND(AVERAGE(V6:V35),1) -> 2 | W5: n/a | X5: =MROUND(AVERAGE(X6:X35),1) -> 3 | Z5: =MROUND(AVERAGE(Z6:Z35),0.1) -> 1.4 | AB5: =MROUND(AVERAGE(AB6:AB35),1) -> 1 | AC5: =MROUND(AVERAGE(AC6:AC35),1) -> 2 | AD5: =MROUND(AVERAGE(AD6:AD35),1) -> 2 | AE5: =MROUND(AVERAGE(AE6:AE35),1) -> 1
A6: Austria | B6: =MROUND((Z6+S6+L6+E6)/4,0.1) -> 1.5 | C6: =MROUND((AB6+U6+N6+G6)/4,0.1) -> 2 | E6: =VLOOKUP(A6,'Historical Protection gap'!$A$17:$AC$47,8,FALSE) -> 0 | G6: =IF((AND(ISNUMBER(I6),ISNUMBER(J6))),MROUND((H6)^(1.5/3)*I6^(0.5/3)*J6^(1/3),0.1),IF(ISNUMBER(I6),MROUND((H6)^(1.5/2)*I6^(0.5/2),0.1),MROUND((H6)^(1.5/2.5)*J6^(1/2.5),0.1))) -> 1.8 | H6: =IFERROR(VLOOKUP(A6,Exposure_Hazard!B$17:Q$47,7,FALSE),"n/a") -> 1 | I6: =IFERROR(VLOOKUP(A6,Vulnerability!A$17:F$47,6,FALSE),"n/a") -> 4 | J6: =IFERROR(VLOOKUP(A6,'Insurance coverage'!B$18:AD$47,7,FALSE),"n/a") -> 3 | L6: =VLOOKUP(A6,'Historical Protection gap'!$A$17:$AC$47,15,FALSE) -> 2 | N6: =IF((AND(ISNUMBER(P6),ISNUMBER(Q6))),MROUND((O6)^(1.5/3)*P6^(0.5/3)*Q6^(1/3),0.1),IF(ISNUMBER(P6),MROUND((O6)^(1.5/2)*P6^(0.5/2),0.1),MROUND((O6)^(1.5/2.5)*Q6^(1/2.5),0.1))) -> 3.4 | O6: =IFERROR(VLOOKUP(A6,Exposure_Hazard!B$17:Q$47,11,FALSE),"n/a") -> 3 | P6: n/a | Q6: =IFERROR(VLOOKUP(A6,'Insurance coverage'!B$18:AD$47,14,FALSE),"n/a") -> 4 | S6: =VLOOKUP(A6,'Historical Protection gap'!$A$17:$AC$47,22,FALSE) -> 2 | U6: =IF((AND(ISNUMBER(W6),ISNUMBER(X6))),MROUND((V6)^(1.5/3)*W6^(0.5/3)*X6^(1/3),0.1),IF(ISNUMBER(W6),MROUND((V6)^(1.5/2)*W6^(0.5/2),0.1),MROUND((V6)^(1.5/2.5)*X6^(1/2.5),0.1))) -> 2.6 | V6: =IFERROR(VLOOKUP(A6,Exposure_Hazard!B$17:T$47,15,FALSE),"n/a") -> 2 | W6: n/a | X6: =IFERROR(VLOOKUP(A6,'Insurance coverage'!B$18:AD$47,17,FALSE),"n/a") -> 4 | Z6: =VLOOKUP(A6,'Historical Protection gap'!$A$17:$AC$47,29,FALSE) -> 2 | AB6: =IF((AND(ISNUMBER(AD6),ISNUMBER(AE6))),MROUND((AC6)^(1.5/3)*AD6^(0.5/3)*AE6^(1/3),0.1),IF(ISNUMBER(AD6),MROUND((AC6)^(1.5/2)*AD6^(0.5/2),0.1),MROUND((AC6)^(1.5/2.5)*AE6^(1/2.5),0.1))) -> 0 | AC6: =IFERROR(VLOOKUP(A6,Exposure_Hazard!B$17:T$47,19,FALSE),"n/a") -> 2 | AD6: =IFERROR(VLOOKUP(A6,Vulnerability!$A$17:$M$47,13,FALSE),"n/a") -> 2 | AE6: =IFERROR(VLOOKUP(A6,'Insurance coverage'!B$18:AD$47,28,FALSE),"n/a") -> 0 | AG6: 0 | AH6: no risk
A7: Belgium | B7: =MROUND((Z7+S7+L7+E7)/4,0.1) -> 1 | C7: =MROUND((AB7+U7+N7+G7)/4,0.1) -> 1.7 | E7: =VLOOKUP(A7,'Historical Protection gap'!$A$17:$AC$47,8,FALSE) -> 1 | G7: =IF((AND(ISNUMBER(I7),ISNUMBER(J7))),MROUND((H7)^(1.5/3)*I7^(0.5/3)*J7^(1/3),0.1),IF(ISNUMBER(I7),MROUND((H7)^(1.5/2)*I7^(0.5/2),0.1),MROUND((H7)^(1.5/2.5)*J7^(1/2.5),0.1))) -> 1.3 | H7: =IFERROR(VLOOKUP(A7,Exposure_Hazard!B$17:Q$47,7,FALSE),"n/a") -> 1 | I7: =IFERROR(VLOOKUP(A7,Vulnerability!A$17:F$47,6,FALSE),"n/a") -> 4 | J7: =IFERROR(VLOOKUP(A7,'Insurance coverage'!B$18:AD$47,7,FALSE),"n/a") -> 1 | L7: =VLOOKUP(A7,'Historical Protection gap'!$A$17:$AC$47,15,FALSE) -> 1 | N7: =IF((AND(ISNUMBER(P7),ISNUMBER(Q7))),MROUND((O7)^(1.5/3)*P7^(0.5/3)*Q7^(1/3),0.1),IF(ISNUMBER(P7),MROUND((O7)^(1.5/2)*P7^(0.5/2),0.1),MROUND((O7)^(1.5/2.5)*Q7^(1/2.5),0.1))) -> 1.9 | O7: =IFERROR(VLOOKUP(A7,Exposure_Hazard!B$17:Q$47,11,FALSE),"n/a") -> 3 | P7: n/a | Q7: =IFERROR(VLOOKUP(A7,'Insurance coverage'!B$18:AD$47,14,FALSE),"n/a") -> 1 | S7: =VLOOKUP(A7,'Historical Protection gap'!$A$17:$AC$47,22,FALSE) -> 1 | U7: 2 | V7: =IFERROR(VLOOKUP(A7,Exposure_Hazard!B$17:T$47,15,FALSE),"n/a") -> 2 | W7: n/a | X7: =IFERROR(VLOOKUP(A7,'Insurance coverage'!B$18:AD$47,17,FALSE),"n/a") -> n/a | Z7: =VLOOKUP(A7,'Historical Protection gap'!$A$17:$AC$47,29,FALSE) -> 1 | AB7: =IF((AND(ISNUMBER(AD7),ISNUMBER(AE7))),MROUND((AC7)^(1.5/3)*AD7^(0.5/3)*AE7^(1/3),0.1),IF(ISNUMBER(AD7),MROUND((AC7)^(1.5/2)*AD7^(0.5/2),0.1),MROUND((AC7)^(1.5/2.5)*AE7^(1/2.5),0.1))) -> 1.6 | AC7: =IFERROR(VLOOKUP(A7,Exposure_Hazard!B$17:T$47,19,FALSE),"n/a") -> 2 | AD7: =IFERROR(VLOOKUP(A7,Vulnerability!$A$17:$M$47,13,FALSE),"n/a") -> 2 | AE7: =IFERROR(VLOOKUP(A7,'Insurance coverage'!B$18:AD$47,28,FALSE),"n/a") -> 1 | AG7: 1 | AH7: low risk
A8: Bulgaria | B8: 1.8 | C8: 2 | E8: =VLOOKUP(A8,'Historical Protection gap'!$A$17:$AC$47,8,FALSE) -> 1 | G8: 3.2 | H8: =IFERROR(VLOOKUP(A8,Exposure_Hazard!B$17:Q$47,7,FALSE),"n/a") -> 3 | I8: =IFERROR(VLOOKUP(A8,Vulnerability!A$17:F$47,6,FALSE),"n/a") -> 4 | J8: =IFERROR(VLOOKUP(A8,'Insurance coverage'!B$18:AD$47,7,FALSE),"n/a") -> n/a | L8: =VLOOKUP(A8,'Historical Protection gap'!$A$17:$AC$47,15,FALSE) -> 3 | N8: 1.7 | O8: =IFERROR(VLOOKUP(A8,Exposure_Hazard!B$17:Q$47,11,FALSE),"n/a") -> 1 | P8: n/a | Q8: =IFERROR(VLOOKUP(A8,'Insurance coverage'!B$18:AD$47,14,FALSE),"n/a") -> 4 | S8: =VLOOKUP(A8,'Historical Protection gap'!$A$17:$AC$47,22,FALSE) -> 1 | U8: =IF((AND(ISNUMBER(W8),ISNUMBER(X8))),MROUND((V8)^(1.5/3)*W8^(0.5/3)*X8^(1/3),1),IF(ISNUMBER(W8),MROUND((V8)^(1.5/2)*W8^(0.5/2),1),MROUND((V8)^(1.5/2.5)*X8^(1/2.5),1))) -> 2 | V8: =IFERROR(VLOOKUP(A8,Exposure_Hazard!B$17:T$47,15,FALSE),"n/a") -> 1 | W8: n/a | X8: =IFERROR(VLOOKUP(A8,'Insurance coverage'!B$18:AD$47,17,FALSE),"n/a") -> 4 | Z8: =VLOOKUP(A8,'Historical Protection gap'!$A$17:$AC$47,29,FALSE) -> 2 | AB8: 1.2 | AC8: =IFERROR(VLOOKUP(A8,Exposure_Hazard!B$17:T$47,19,FALSE),"n/a") -> 1 | AD8: =IFERROR(VLOOKUP(A8,Vulnerability!$A$17:$M$47,13,FALSE),"n/a") -> 2 | AE8: =IFERROR(VLOOKUP(A8,'Insurance coverage'!B$18:AD$47,28,FALSE),"n/a") -> n/a | AG8: 2 | AH8: low/medium risk
A9: Croatia | B9: 2.3 | C9: 2.4 | E9: =VLOOKUP(A9,'Historical Protection gap'!$A$17:$AC$47,8,FALSE) -> 2 | G9: 2.8 | H9: =IFERROR(VLOOKUP(A9,Exposure_Hazard!B$17:Q$47,7,FALSE),"n/a") -> 2 | I9: =IFERROR(VLOOKUP(A9,Vulnerability!A$17:F$47,6,FALSE),"n/a") -> 4 | J9: =IFERROR(VLOOKUP(A9,'Insurance coverage'!B$18:AD$47,7,FALSE),"n/a") -> 4 | L9: =VLOOKUP(A9,'Historical Protection gap'!$A$17:$AC$47,15,FALSE) -> 3 | N9: 2 | O9: =IFERROR(VLOOKUP(A9,Exposure_Hazard!B$17:Q$47,11,FALSE),"n/a") -> 2 | P9: n/a | Q9: =IFERROR(VLOOKUP(A9,'Insurance coverage'!B$18:AD$47,14,FALSE),"n/a") -> 2 | S9: =VLOOKUP(A9,'Historical Protection gap'!$A$17:$AC$47,22,FALSE) -> 3 | U9: 3 | V9: =IFERROR(VLOOKUP(A9,Exposure_Hazard!B$17:T$47,15,FALSE),"n/a") -> 2 | W9: n/a | X9: =IFERROR(VLOOKUP(A9,'Insurance coverage'!B$18:AD$47,17,FALSE),"n/a") -> 4 | Z9: =VLOOKUP(A9,'Historical Protection gap'!$A$17:$AC$47,29,FALSE) -> 1 | AB9: 1.6 | AC9: =IFERROR(VLOOKUP(A9,Exposure_Hazard!B$17:T$47,19,FALSE),"n/a") -> 1 | AD9: =IFERROR(VLOOKUP(A9,Vulnerability!$A$17:$M$47,13,FALSE),"n/a") -> 2 | AE9: =IFERROR(VLOOKUP(A9,'Insurance coverage'!B$18:AD$47,28,FALSE),"n/a") -> 3 | AG9: 3 | AH9: medium/high risk
A10: Cyprus | B10: 1.3 | C10: 1.9 | E10: =VLOOKUP(A10,'Historical Protection gap'!$A$17:$AC$47,8,FALSE) -> 1 | G10: 2.5 | H10: =IFERROR(VLOOKUP(A10,Exposure_Hazard!B$17:Q$47,7,FALSE),"n/a") -> 3 | I10: =IFERROR(VLOOKUP(A10,Vulnerability!A$17:F$47,6,FALSE),"n/a") -> 1 | J10: =IFERROR(VLOOKUP(A10,'Insurance coverage'!B$18:AD$47,7,FALSE),"n/a") -> 3 | L10: =VLOOKUP(A10,'Historical Protection gap'!$A$17:$AC$47,15,FALSE) -> 1 | N10: 1 | O10: =IFERROR(VLOOKUP(A10,Exposure_Hazard!B$17:Q$47,11,FALSE),"n/a") -> 1 | P10: n/a | Q10: =IFERROR(VLOOKUP(A10,'Insurance coverage'!B$18:AD$47,14,FALSE),"n/a") -> n/a | S10: =VLOOKUP(A10,'Historical Protection gap'!$A$17:$AC$47,22,FALSE) -> 2 | U10: 3 | V10: =IFERROR(VLOOKUP(A10,Exposure_Hazard!B$17:T$47,15,FALSE),"n/a") -> 3 | W10: n/a | X10: =IFERROR(VLOOKUP(A10,'Insurance coverage'!B$18:AD$47,17,FALSE),"n/a") -> 4 | Z10: =VLOOKUP(A10,'Historical Protection gap'!$A$17:$AC$47,29,FALSE) -> 1 | AB10: 1 | AC10: =IFERROR(VLOOKUP(A10,Exposure_Hazard!B$17:T$47,19,FALSE),"n/a") -> 1 | AD10: =IFERROR(VLOOKUP(A10,Vulnerability!$A$17:$M$47,13,FALSE),"n/a") -> 1 | AE10: =IFERROR(VLOOKUP(A10,'Insurance coverage'!B$18:AD$47,28,FALSE),"n/a") -> n/a | AG10: 4 | AH10: high risk
A11: Czech Republic | B11: 1.8 | C11: 1.9 | E11: =VLOOKUP(A11,'Historical Protection gap'!$A$17:$AC$47,8,FALSE) -> 1 | G11: 1.8 | H11: =IFERROR(VLOOKUP(A11,Exposure_Hazard!B$17:Q$47,7,FALSE),"n/a") -> 1 | I11: =IFERROR(VLOOKUP(A11,Vulnerability!A$17:F$47,6,FALSE),"n/a") -> 4 | J11: =IFERROR(VLOOKUP(A11,'Insurance coverage'!B$18:AD$47,7,FALSE),"n/a") -> 3 | L11: =VLOOKUP(A11,'Historical Protection gap'!$A$17:$AC$47,15,FALSE) -> 3 | N11: 2 | O11: =IFERROR(VLOOKUP(A11,Exposure_Hazard!B$17:Q$47,11,FALSE),"n/a") -> 2 | P11: n/a | Q11: =IFERROR(VLOOKUP(A11,'Insurance coverage'!B$18:AD$47,14,FALSE),"n/a") -> 2 | S11: =VLOOKUP(A11,'Historical Protection gap'!$A$17:$AC$47,22,FALSE) -> 2 | U11: 2 | V11: =IFERROR(VLOOKUP(A11,Exposure_Hazard!B$17:T$47,15,FALSE),"n/a") -> 1 | W11: n/a | X11: =IFERROR(VLOOKUP(A11,'Insurance coverage'!B$18:AD$47,17,FALSE),"n/a") -> 4 | Z11: =VLOOKUP(A11,'Historical Protection gap'!$A$17:$AC$47,29,FALSE) -> 1 | AB11: 1.6 | AC11: =IFERROR(VLOOKUP(A11,Exposure_Hazard!B$17:T$47,19,FALSE),"n/a") -> 2 | AD11: =IFERROR(VLOOKUP(A11,Vulnerability!$A$17:$M$47,13,FALSE),"n/a") -> 2 | AE11: =IFERROR(VLOOKUP(A11,'Insurance coverage'!B$18:AD$47,28,FALSE),"n/a") -> 1 | AG11: n/a | AH11: not available
A12: Denmark | B12: 1.5 | C12: 0 | E12: =VLOOKUP(A12,'Historical Protection gap'!$A$17:$AC$47,8,FALSE) -> 1 | G12: 0 | H12: =IFERROR(VLOOKUP(A12,Exposure_Hazard!B$17:Q$47,7,FALSE),"n/a") -> 0 | I12: =IFERROR(VLOOKUP(A12,Vulnerability!A$17:F$47,6,FALSE),"n/a") -> 4 | J12: =IFERROR(VLOOKUP(A12,'Insurance coverage'!B$18:AD$47,7,FALSE),"n/a") -> 4 | L12: =VLOOKUP(A12,'Historical Protection gap'!$A$17:$AC$47,15,FALSE) -> 1 | N12: 0 | O12: =IFERROR(VLOOKUP(A12,Exposure_Hazard!B$17:Q$47,11,FALSE),"n/a") -> 1 | P12: n/a | Q12: =IFERROR(VLOOKUP(A12,'Insurance coverage'!B$18:AD$47,14,FALSE),"n/a") -> 0 | S12: =VLOOKUP(A12,'Historical Protection gap'!$A$17:$AC$47,22,FALSE) -> 2 | U12: 0 | V12: =IFERROR(VLOOKUP(A12,Exposure_Hazard!B$17:T$47,15,FALSE),"n/a") -> 1 | W12: n/a | X12: =IFERROR(VLOOKUP(A12,'Insurance coverage'!B$18:AD$47,17,FALSE),"n/a") -> 0 | Z12: =VLOOKUP(A12,'Historical Protection gap'!$A$17:$AC$47,29,FALSE) -> 2 | AB12: 0 | AC12: =IFERROR(VLOOKUP(A12,Exposure_Hazard!B$17:T$47,19,FALSE),"n/a") -> 4 | AD12: =IFERROR(VLOOKUP(A12,Vulnerability!$A$17:$M$47,13,FALSE),"n/a") -> 2 | AE12: =IFERROR(VLOOKUP(A12,'Insurance coverage'!B$18:AD$47,28,FALSE),"n/a") -> 0
A13: Estonia | B13: 0.5 | C13: 1.1 | E13: =VLOOKUP(A13,'Historical Protection gap'!$A$17:$AC$47,8,FALSE) -> 0 | G13: 0 | H13: =IFERROR(VLOOKUP(A13,Exposure_Hazard!B$17:Q$47,7,FALSE),"n/a") -> 0 | I13: =IFERROR(VLOOKUP(A13,Vulnerability!A$17:F$47,6,FALSE),"n/a") -> 4 | J13: =IFERROR(VLOOKUP(A13,'Insurance coverage'!B$18:AD$47,7,FALSE),"n/a") -> 4 | L13: =VLOOKUP(A13,'Historical Protection gap'!$A$17:$AC$47,15,FALSE) -> 0 | N13: 0 | O13: =IFERROR(VLOOKUP(A13,Exposure_Hazard!B$17:Q$47,11,FALSE),"n/a") -> 1 | P13: n/a | Q13: =IFERROR(VLOOKUP(A13,'Insurance coverage'!B$18:AD$47,14,FALSE),"n/a") -> 0 | S13: =VLOOKUP(A13,'Historical Protection gap'!$A$17:$AC$47,22,FALSE) -> 1 | U13: 3 | V13: =IFERROR(VLOOKUP(A13,Exposure_Hazard!B$17:T$47,15,FALSE),"n/a") -> 2 | W13: n/a | X13: =IFERROR(VLOOKUP(A13,'Insurance coverage'!B$18:AD$47,17,FALSE),"n/a") -> 4 | Z13: =VLOOKUP(A13,'Historical Protection gap'!$A$17:$AC$47,29,FALSE) -> 1 | AB13: 1.5 | AC13: =IFERROR(VLOOKUP(A13,Exposure_Hazard!B$17:T$47,19,FALSE),"n/a") -> 2 | AD13: =IFERROR(VLOOKUP(A13,Vulnerability!$A$17:$M$47,13,FALSE),"n/a") -> n/a | AE13: =IFERROR(VLOOKUP(A13,'Insurance coverage'!B$18:AD$47,28,FALSE),"n/a") -> 1
A14: Finland | B14: 1 | C14: 0.7 | E14: =VLOOKUP(A14,'Historical Protection gap'!$A$17:$AC$47,8,FALSE) -> 0 | G14: 0 | H14: =IFERROR(VLOOKUP(A14,Exposure_Hazard!B$17:Q$47,7,FALSE),"n/a") -> 0 | I14: =IFERROR(VLOOKUP(A14,Vulnerability!A$17:F$47,6,FALSE),"n/a") -> 4 | J14: =IFERROR(VLOOKUP(A14,'Insurance coverage'!B$18:AD$47,7,FALSE),"n/a") -> n/a | L14: =VLOOKUP(A14,'Historical Protection gap'!$A$17:$AC$47,15,FALSE) -> 1 | N14: 1 | O14: =IFERROR(VLOOKUP(A14,Exposure_Hazard!B$17:Q$47,11,FALSE),"n/a") -> 1 | P14: n/a | Q14: =IFERROR(VLOOKUP(A14,'Insurance coverage'!B$18:AD$47,14,FALSE),"n/a") -> n/a | S14: =VLOOKUP(A14,'Historical Protection gap'!$A$17:$AC$47,22,FALSE) -> 2 | U14: 0 | V14: =IFERROR(VLOOKUP(A14,Exposure_Hazard!B$17:T$47,15,FALSE),"n/a") -> 1 | W14: n/a | X14: =IFERROR(VLOOKUP(A14,'Insurance coverage'!B$18:AD$47,17,FALSE),"n/a") -> 0 | Z14: =VLOOKUP(A14,'Historical Protection gap'!$A$17:$AC$47,29,FALSE) -> 1 | AB14: 1.8 | AC14: =IFERROR(VLOOKUP(A14,Exposure_Hazard!B$17:T$47,19,FALSE),"n/a") -> 2 | AD14: =IFERROR(VLOOKUP(A14,Vulnerability!$A$17:$M$47,13,FALSE),"n/a") -> 4 | AE14: =IFERROR(VLOOKUP(A14,'Insurance coverage'!B$18:AD$47,28,FALSE),"n/a") -> 1
A15: France | B15: 1.3 | C15: 0.5 | E15: =VLOOKUP(A15,'Historical Protection gap'!$A$17:$AC$47,8,FALSE) -> 1 | G15: 0 | H15: =IFERROR(VLOOKUP(A15,Exposure_Hazard!B$17:Q$47,7,FALSE),"n/a") -> 1 | I15: =IFERROR(VLOOKUP(A15,Vulnerability!A$17:F$47,6,FALSE),"n/a") -> 4 | J15: =IFERROR(VLOOKUP(A15,'Insurance coverage'!B$18:AD$47,7,FALSE),"n/a") -> 0 | L15: =VLOOKUP(A15,'Historical Protection gap'!$A$17:$AC$47,15,FALSE) -> 1 | N15: 0 | O15: =IFERROR(VLOOKUP(A15,Exposure_Hazard!B$17:Q$47,11,FALSE),"n/a") -> 2 | P15: n/a | Q15: =IFERROR(VLOOKUP(A15,'Insurance coverage'!B$18:AD$47,14,FALSE),"n/a") -> 0 | S15: =VLOOKUP(A15,'Historical Protection gap'!$A$17:$AC$47,22,FALSE) -> 1 | U15: 2 | V15: =IFERROR(VLOOKUP(A15,Exposure_Hazard!B$17:T$47,15,FALSE),"n/a") -> 2 | W15: n/a | X15: =IFERROR(VLOOKUP(A15,'Insurance coverage'!B$18:AD$47,17,FALSE),"n/a") -> n/a | Z15: =VLOOKUP(A15,'Historical Protection gap'!$A$17:$AC$47,29,FALSE) -> 2 | AB15: 0 | AC15: =IFERROR(VLOOKUP(A15,Exposure_Hazard!B$17:T$47,19,FALSE),"n/a") -> 1 | AD15: =IFERROR(VLOOKUP(A15,Vulnerability!$A$17:$M$47,13,FALSE),"n/a") -> 2 | AE15: =IFERROR(VLOOKUP(A15,'Insurance coverage'!B$18:AD$47,28,FALSE),"n/a") -> 0
A16: Germany | B16: 1.5 | C16: 1.6 | E16: =VLOOKUP(A16,'Historical Protection gap'!$A$17:$AC$47,8,FALSE) -> 1 | G16: 1.6 | H16: =IFERROR(VLOOKUP(A16,Exposure_Hazard!B$17:Q$47,7,FALSE),"n/a") -> 1 | I16: =IFERROR(VLOOKUP(A16,Vulnerability!A$17:F$47,6,FALSE),"n/a") -> 4 | J16: =IFERROR(VLOOKUP(A16,'Insurance coverage'!B$18:AD$47,7,FALSE),"n/a") -> 2 | L16: =VLOOKUP(A16,'Historical Protection gap'!$A$17:$AC$47,15,FALSE) -> 2 | N16: 2.6 | O16: =IFERROR(VLOOKUP(A16,Exposure_Hazard!B$17:Q$47,11,FALSE),"n/a") -> 3 | P16: n/a | Q16: =IFERROR(VLOOKUP(A16,'Insurance coverage'!B$18:AD$47,14,FALSE),"n/a") -> 2 | S16: =VLOOKUP(A16,'Historical Protection gap'!$A$17:$AC$47,22,FALSE) -> 1 | U16: 1 | V16: =IFERROR(VLOOKUP(A16,Exposure_Hazard!B$17:T$47,15,FALSE),"n/a") -> 1 | W16: n/a | X16: =IFERROR(VLOOKUP(A16,'Insurance coverage'!B$18:AD$47,17,FALSE),"n/a") -> 2 | Z16: =VLOOKUP(A16,'Historical Protection gap'!$A$17:$AC$47,29,FALSE) -> 2 | AB16: 1.1 | AC16: =IFERROR(VLOOKUP(A16,Exposure_Hazard!B$17:T$47,19,FALSE),"n/a") -> 1 | AD16: =IFERROR(VLOOKUP(A16,Vulnerability!$A$17:$M$47,13,FALSE),"n/a") -> 2 | AE16: =IFERROR(VLOOKUP(A16,'Insurance coverage'!B$18:AD$47,28,FALSE),"n/a") -> 1
A17: Greece | B17: 2.8 | C17: 2.2 | E17: =VLOOKUP(A17,'Historical Protection gap'!$A$17:$AC$47,8,FALSE) -> 4 | G17: 3.5 | H17: =IFERROR(VLOOKUP(A17,Exposure_Hazard!B$17:Q$47,7,FALSE),"n/a") -> 3 | I17: =IFERROR(VLOOKUP(A17,Vulnerability!A$17:F$47,6,FALSE),"n/a") -> 4 | J17: =IFERROR(VLOOKUP(A17,'Insurance coverage'!B$18:AD$47,7,FALSE),"n/a") -> 4 | L17: =VLOOKUP(A17,'Historical Protection gap'!$A$17:$AC$47,15,FALSE) -> 2 | N17: 1.7 | O17: =IFERROR(VLOOKUP(A17,Exposure_Hazard!B$17:Q$47,11,FALSE),"n/a") -> 1 | P17: n/a | Q17: =IFERROR(VLOOKUP(A17,'Insurance coverage'!B$18:AD$47,14,FALSE),"n/a") -> 4 | S17: =VLOOKUP(A17,'Historical Protection gap'!$A$17:$AC$47,22,FALSE) -> 3 | U17: 2 | V17: =IFERROR(VLOOKUP(A17,Exposure_Hazard!B$17:T$47,15,FALSE),"n/a") -> 1 | W17: n/a | X17: =IFERROR(VLOOKUP(A17,'Insurance coverage'!B$18:AD$47,17,FALSE),"n/a") -> 4 | Z17: =VLOOKUP(A17,'Historical Protection gap'!$A$17:$AC$47,29,FALSE) -> 2 | AB17: 1.6 | AC17: =IFERROR(VLOOKUP(A17,Exposure_Hazard!B$17:T$47,19,FALSE),"n/a") -> 1 | AD17: =IFERROR(VLOOKUP(A17,Vulnerability!$A$17:$M$47,13,FALSE),"n/a") -> 1 | AE17: =IFERROR(VLOOKUP(A17,'Insurance coverage'!B$18:AD$47,28,FALSE),"n/a") -> 4
A18: Hungary | B18: 1.8 | C18: 1.3 | E18: =VLOOKUP(A18,'Historical Protection gap'!$A$17:$AC$47,8,FALSE) -> 1 | G18: 1.3 | H18: =IFERROR(VLOOKUP(A18,Exposure_Hazard!B$17:Q$47,7,FALSE),"n/a") -> 1 | I18: =IFERROR(VLOOKUP(A18,Vulnerability!A$17:F$47,6,FALSE),"n/a") -> 4 | J18: =IFERROR(VLOOKUP(A18,'Insurance coverage'!B$18:AD$47,7,FALSE),"n/a") -> 1 | L18: =VLOOKUP(A18,'Historical Protection gap'!$A$17:$AC$47,15,FALSE) -> 2 | N18: 1.9 | O18: =IFERROR(VLOOKUP(A18,Exposure_Hazard!B$17:Q$47,11,FALSE),"n/a") -> 3 | P18: n/a | Q18: =IFERROR(VLOOKUP(A18,'Insurance coverage'!B$18:AD$47,14,FALSE),"n/a") -> 1 | S18: =VLOOKUP(A18,'Historical Protection gap'!$A$17:$AC$47,22,FALSE) -> 3 | U18: 1 | V18: =IFERROR(VLOOKUP(A18,Exposure_Hazard!B$17:T$47,15,FALSE),"n/a") -> 1 | W18: n/a | X18: =IFERROR(VLOOKUP(A18,'Insurance coverage'!B$18:AD$47,17,FALSE),"n/a") -> n/a | Z18: =VLOOKUP(A18,'Historical Protection gap'!$A$17:$AC$47,29,FALSE) -> 1 | AB18: 1.1 | AC18: =IFERROR(VLOOKUP(A18,Exposure_Hazard!B$17:T$47,19,FALSE),"n/a") -> 1 | AD18: =IFERROR(VLOOKUP(A18,Vulnerability!$A$17:$M$47,13,FALSE),"n/a") -> 2 | AE18: =IFERROR(VLOOKUP(A18,'Insurance coverage'!B$18:AD$47,28,FALSE),"n/a") -> 1
A19: Iceland | B19: 1 | C19: 1 | E19: =VLOOKUP(A19,'Historical Protection gap'!$A$17:$AC$47,8,FALSE) -> 2 | G19: 1 | H19: =IFERROR(VLOOKUP(A19,Exposure_Hazard!B$17:Q$47,7,FALSE),"n/a") -> 1 | I19: =IFERROR(VLOOKUP(A19,Vulnerability!A$17:F$47,6,FALSE),"n/a") -> n/a | J19: =IFERROR(VLOOKUP(A19,'Insurance coverage'!B$18:AD$47,7,FALSE),"n/a") -> 1 | L19: =VLOOKUP(A19,'Historical Protection gap'!$A$17:$AC$47,15,FALSE) -> 1 | N19: 1 | O19: =IFERROR(VLOOKUP(A19,Exposure_Hazard!B$17:Q$47,11,FALSE),"n/a") -> 1 | P19: n/a | Q19: =IFERROR(VLOOKUP(A19,'Insurance coverage'!B$18:AD$47,14,FALSE),"n/a") -> 1 | S19: =VLOOKUP(A19,'Historical Protection gap'!$A$17:$AC$47,22,FALSE) -> 0 | U19: n/a | V19: =IFERROR(VLOOKUP(A19,Exposure_Hazard!B$17:T$47,15,FALSE),"n/a") -> n/a | W19: n/a | X19: =IFERROR(VLOOKUP(A19,'Insurance coverage'!B$18:AD$47,17,FALSE),"n/a") -> n/a | Z19: =VLOOKUP(A19,'Historical Protection gap'!$A$17:$AC$47,29,FALSE) -> 1 | AB19: 1 | AC19: =IFERROR(VLOOKUP(A19,Exposure_Hazard!B$17:T$47,19,FALSE),"n/a") -> n/a | AD19: =IFERROR(VLOOKUP(A19,Vulnerability!$A$17:$M$47,13,FALSE),"n/a") -> n/a | AE19: =IFERROR(VLOOKUP(A19,'Insurance coverage'!B$18:AD$47,28,FALSE),"n/a") -> 1
A20: Ireland | B20: 0.8 | C20: 0.7 | E20: =VLOOKUP(A20,'Historical Protection gap'!$A$17:$AC$47,8,FALSE) -> 0 | G20: 0 | H20: =IFERROR(VLOOKUP(A20,Exposure_Hazard!B$17:Q$47,7,FALSE),"n/a") -> 0 | I20: =IFERROR(VLOOKUP(A20,Vulnerability!A$17:F$47,6,FALSE),"n/a") -> 4 | J20: =IFERROR(VLOOKUP(A20,'Insurance coverage'!B$18:AD$47,7,FALSE),"n/a") -> 4 | L20: =VLOOKUP(A20,'Historical Protection gap'!$A$17:$AC$47,15,FALSE) -> 1 | N20: 0 | O20: =IFERROR(VLOOKUP(A20,Exposure_Hazard!B$17:Q$47,11,FALSE),"n/a") -> 1 | P20: n/a | Q20: =IFERROR(VLOOKUP(A20,'Insurance coverage'!B$18:AD$47,14,FALSE),"n/a") -> 0 | S20: =VLOOKUP(A20,'Historical Protection gap'!$A$17:$AC$47,22,FALSE) -> 1 | U20: 1 | V20: =IFERROR(VLOOKUP(A20,Exposure_Hazard!B$17:T$47,15,FALSE),"n/a") -> 1 | W20: n/a | X20: =IFERROR(VLOOKUP(A20,'Insurance coverage'!B$18:AD$47,17,FALSE),"n/a") -> n/a | Z20: =VLOOKUP(A20,'Historical Protection gap'!$A$17:$AC$47,29,FALSE) -> 1 | AB20: 1.9 | AC20: =IFERROR(VLOOKUP(A20,Exposure_Hazard!B$17:T$47,19,FALSE),"n/a") -> 3 | AD20: =IFERROR(VLOOKUP(A20,Vulnerability!$A$17:$M$47,13,FALSE),"n/a") -> 2 | AE20: =IFERROR(VLOOKUP(A20,'Insurance coverage'!B$18:AD$47,28,FALSE),"n/a") -> 1
A21: Italy | B21: 2 | C21: 2.4 | E21: =VLOOKUP(A21,'Historical Protection gap'!$A$17:$AC$47,8,FALSE) -> 3 | G21: 3.5 | H21: =IFERROR(VLOOKUP(A21,Exposure_Hazard!B$17:Q$47,7,FALSE),"n/a") -> 3 | I21: =IFERROR(VLOOKUP(A21,Vulnerability!A$17:F$47,6,FALSE),"n/a") -> 4 | J21: =IFERROR(VLOOKUP(A21,'Insurance coverage'!B$18:AD$47,7,FALSE),"n/a") -> 4 | L21: =VLOOKUP(A21,'Historical Protection gap'!$A$17:$AC$47,15,FALSE) -> 2 | N21: 1.7 | O21: =IFERROR(VLOOKUP(A21,Exposure_Hazard!B$17:Q$47,11,FALSE),"n/a") -> 1 | P21: n/a | Q21: =IFERROR(VLOOKUP(A21,'Insurance coverage'!B$18:AD$47,14,FALSE),"n/a") -> 4 | S21: =VLOOKUP(A21,'Historical Protection gap'!$A$17:$AC$47,22,FALSE) -> 2 | U21: 2 | V21: =IFERROR(VLOOKUP(A21,Exposure_Hazard!B$17:T$47,15,FALSE),"n/a") -> 2 | W21: n/a | X21: =IFERROR(VLOOKUP(A21,'Insurance coverage'!B$18:AD$47,17,FALSE),"n/a") -> n/a | Z21: =VLOOKUP(A21,'Historical Protection gap'!$A$17:$AC$47,29,FALSE) -> 1 | AB21: 2.5 | AC21: =IFERROR(VLOOKUP(A21,Exposure_Hazard!B$17:T$47,19,FALSE),"n/a") -> 2 | AD21: =IFERROR(VLOOKUP(A21,Vulnerability!$A$17:$M$47,13,FALSE),"n/a") -> 2 | AE21: =IFERROR(VLOOKUP(A21,'Insurance coverage'!B$18:AD$47,28,FALSE),"n/a") -> 4
A22: Latvia | B22: 1.3 | C22: =MROUND((AB22+U22+N22+G22)/4,0.1) -> 0.9 | E22: =VLOOKUP(A22,'Historical Protection gap'!$A$17:$AC$47,8,FALSE) -> 0 | G22: 0 | H22: =IFERROR(VLOOKUP(A22,Exposure_Hazard!B$17:Q$47,7,FALSE),"n/a") -> 0 | I22: =IFERROR(VLOOKUP(A22,Vulnerability!A$17:F$47,6,FALSE),"n/a") -> 4 | J22: =IFERROR(VLOOKUP(A22,'Insurance coverage'!B$18:AD$47,7,FALSE),"n/a") -> 4 | L22: =VLOOKUP(A22,'Historical Protection gap'!$A$17:$AC$47,15,FALSE) -> 1 | N22: 1 | O22: =IFERROR(VLOOKUP(A22,Exposure_Hazard!B$17:Q$47,11,FALSE),"n/a") -> 1 | P22: n/a | Q22: =IFERROR(VLOOKUP(A22,'Insurance coverage'!B$18:AD$47,14,FALSE),"n/a") -> n/a | S22: =VLOOKUP(A22,'Historical Protection gap'!$A$17:$AC$47,22,FALSE) -> 2 | U22: 1 | V22: =IFERROR(VLOOKUP(A22,Exposure_Hazard!B$17:T$47,15,FALSE),"n/a") -> 1 | W22: n/a | X22: =IFERROR(VLOOKUP(A22,'Insurance coverage'!B$18:AD$47,17,FALSE),"n/a") -> n/a | Z22: =VLOOKUP(A22,'Historical Protection gap'!$A$17:$AC$47,29,FALSE) -> 2 | AB22: 1.7 | AC22: =IFERROR(VLOOKUP(A22,Exposure_Hazard!B$17:T$47,19,FALSE),"n/a") -> 2 | AD22: =IFERROR(VLOOKUP(A22,Vulnerability!$A$17:$M$47,13,FALSE),"n/a") -> 1 | AE22: =IFERROR(VLOOKUP(A22,'Insurance coverage'!B$18:AD$47,28,FALSE),"n/a") -> n/a
A23: Lithuania | B23: 1 | C23: 1.3 | E23: =VLOOKUP(A23,'Historical Protection gap'!$A$17:$AC$47,8,FALSE) -> 0 | G23: 0 | H23: =IFERROR(VLOOKUP(A23,Exposure_Hazard!B$17:Q$47,7,FALSE),"n/a") -> 0 | I23: =IFERROR(VLOOKUP(A23,Vulnerability!A$17:F$47,6,FALSE),"n/a") -> 4 | J23: =IFERROR(VLOOKUP(A23,'Insurance coverage'!B$18:AD$47,7,FALSE),"n/a") -> n/a | L23: =VLOOKUP(A23,'Historical Protection gap'!$A$17:$AC$47,15,FALSE) -> 1 | N23: 1 | O23: =IFERROR(VLOOKUP(A23,Exposure_Hazard!B$17:Q$47,11,FALSE),"n/a") -> 1 | P23: n/a | Q23: =IFERROR(VLOOKUP(A23,'Insurance coverage'!B$18:AD$47,14,FALSE),"n/a") -> n/a | S23: =VLOOKUP(A23,'Historical Protection gap'!$A$17:$AC$47,22,FALSE) -> 2 | U23: 2 | V23: =IFERROR(VLOOKUP(A23,Exposure_Hazard!B$17:T$47,15,FALSE),"n/a") -> 2 | W23: n/a | X23: =IFERROR(VLOOKUP(A23,'Insurance coverage'!B$18:AD$47,17,FALSE),"n/a") -> n/a | Z23: =VLOOKUP(A23,'Historical Protection gap'!$A$17:$AC$47,29,FALSE) -> 1 | AB23: 2 | AC23: =IFERROR(VLOOKUP(A23,Exposure_Hazard!B$17:T$47,19,FALSE),"n/a") -> 2 | AD23: =IFERROR(VLOOKUP(A23,Vulnerability!$A$17:$M$47,13,FALSE),"n/a") -> 2 | AE23: =IFERROR(VLOOKUP(A23,'Insurance coverage'!B$18:AD$47,28,FALSE),"n/a") -> n/a
A24: Liechtenstein | B24: n/a | C24: n/a | E24: =VLOOKUP(A24,'Historical Protection gap'!$A$17:$AC$47,8,FALSE) -> n/a | G24: n/a | H24: =IFERROR(VLOOKUP(A24,Exposure_Hazard!B$17:Q$47,7,FALSE),"n/a") -> n/a | I24: =IFERROR(VLOOKUP(A24,Vulnerability!A$17:F$47,6,FALSE),"n/a") -> n/a | J24: =IFERROR(VLOOKUP(A24,'Insurance coverage'!B$18:AD$47,7,FALSE),"n/a") -> n/a | L24: =VLOOKUP(A24,'Historical Protection gap'!$A$17:$AC$47,15,FALSE) -> n/a | N24: n/a | O24: =IFERROR(VLOOKUP(A24,Exposure_Hazard!B$17:Q$47,11,FALSE),"n/a") -> n/a | P24: n/a | Q24: =IFERROR(VLOOKUP(A24,'Insurance coverage'!B$18:AD$47,14,FALSE),"n/a") -> n/a | S24: =VLOOKUP(A24,'Historical Protection gap'!$A$17:$AC$47,22,FALSE) -> n/a | U24: n/a | V24: =IFERROR(VLOOKUP(A24,Exposure_Hazard!B$17:T$47,15,FALSE),"n/a") -> n/a | W24: n/a | X24: =IFERROR(VLOOKUP(A24,'Insurance coverage'!B$18:AD$47,17,FALSE),"n/a") -> n/a | Z24: =VLOOKUP(A24,'Historical Protection gap'!$A$17:$AC$47,29,FALSE) -> n/a | AB24: n/a | AC24: =IFERROR(VLOOKUP(A24,Exposure_Hazard!B$17:T$47,19,FALSE),"n/a") -> n/a | AD24: =IFERROR(VLOOKUP(A24,Vulnerability!$A$17:$M$47,13,FALSE),"n/a") -> n/a | AE24: =IFERROR(VLOOKUP(A24,'Insurance coverage'!B$18:AD$47,28,FALSE),"n/a") -> n/a
A25: Luxembourg | B25: 1 | C25: 1.6 | E25: =VLOOKUP(A25,'Historical Protection gap'!$A$17:$AC$47,8,FALSE) -> 0 | G25: =IF((AND(ISNUMBER(I25),ISNUMBER(J25))),MROUND((H25)^(1.5/3)*I25^(0.5/3)*J25^(1/3),0.1),IF(ISNUMBER(I25),MROUND((H25)^(1.5/2)*I25^(0.5/2),0.1),MROUND((H25)^(1.5/2.5)*J25^(1/2.5),0.1))) -> 1.3 | H25: =IFERROR(VLOOKUP(A25,Exposure_Hazard!B$17:Q$47,7,FALSE),"n/a") -> 1 | I25: =IFERROR(VLOOKUP(A25,Vulnerability!A$17:F$47,6,FALSE),"n/a") -> 3 | J25: =IFERROR(VLOOKUP(A25,'Insurance coverage'!B$18:AD$47,7,FALSE),"n/a") -> n/a | L25: =VLOOKUP(A25,'Historical Protection gap'!$A$17:$AC$47,15,FALSE) -> 1 | N25: 2 | O25: =IFERROR(VLOOKUP(A25,Exposure_Hazard!B$17:Q$47,11,FALSE),"n/a") -> 2 | P25: n/a | Q25: =IFERROR(VLOOKUP(A25,'Insurance coverage'!B$18:AD$47,14,FALSE),"n/a") -> n/a | S25: =VLOOKUP(A25,'Historical Protection gap'!$A$17:$AC$47,22,FALSE) -> 1 | U25: 2 | V25: =IFERROR(VLOOKUP(A25,Exposure_Hazard!B$17:T$47,15,FALSE),"n/a") -> 2 | W25: n/a | X25: =IFERROR(VLOOKUP(A25,'Insurance coverage'!B$18:AD$47,17,FALSE),"n/a") -> n/a | Z25: =VLOOKUP(A25,'Historical Protection gap'!$A$17:$AC$47,29,FALSE) -> 2 | AB25: 1.1 | AC25: =IFERROR(VLOOKUP(A25,Exposure_Hazard!B$17:T$47,19,FALSE),"n/a") -> 1 | AD25: =IFERROR(VLOOKUP(A25,Vulnerability!$A$17:$M$47,13,FALSE),"n/a") -> 2 | AE25: =IFERROR(VLOOKUP(A25,'Insurance coverage'!B$18:AD$47,28,FALSE),"n/a") -> 1
A26: Malta | B26: 0.5 | C26: 2.3 | E26: =VLOOKUP(A26,'Historical Protection gap'!$A$17:$AC$47,8,FALSE) -> 0 | G26: 2.8 | H26: =IFERROR(VLOOKUP(A26,Exposure_Hazard!B$17:Q$47,7,FALSE),"n/a") -> 2 | I26: =IFERROR(VLOOKUP(A26,Vulnerability!A$17:F$47,6,FALSE),"n/a") -> 4 | J26: =IFERROR(VLOOKUP(A26,'Insurance coverage'!B$18:AD$47,7,FALSE),"n/a") -> 4 | L26: =VLOOKUP(A26,'Historical Protection gap'!$A$17:$AC$47,15,FALSE) -> 1 | N26: 1.7 | O26: =IFERROR(VLOOKUP(A26,Exposure_Hazard!B$17:Q$47,11,FALSE),"n/a") -> 1 | P26: n/a | Q26: =IFERROR(VLOOKUP(A26,'Insurance coverage'!B$18:AD$47,14,FALSE),"n/a") -> 4 | S26: =VLOOKUP(A26,'Historical Protection gap'!$A$17:$AC$47,22,FALSE) -> 0 | U26: 3 | V26: =IFERROR(VLOOKUP(A26,Exposure_Hazard!B$17:T$47,15,FALSE),"n/a") -> 3 | W26: n/a | X26: =IFERROR(VLOOKUP(A26,'Insurance coverage'!B$18:AD$47,17,FALSE),"n/a") -> 4 | Z26: =VLOOKUP(A26,'Historical Protection gap'!$A$17:$AC$47,29,FALSE) -> 1 | AB26: 1.6 | AC26: =IFERROR(VLOOKUP(A26,Exposure_Hazard!B$17:T$47,19,FALSE),"n/a") -> 1 | AD26: =IFERROR(VLOOKUP(A26,Vulnerability!$A$17:$M$47,13,FALSE),"n/a") -> 1 | AE26: =IFERROR(VLOOKUP(A26,'Insurance coverage'!B$18:AD$47,28,FALSE),"n/a") -> 4
A27: Netherlands | B27: 1 | C27: 1.9 | E27: =VLOOKUP(A27,'Historical Protection gap'!$A$17:$AC$47,8,FALSE) -> 1 | G27: 2 | H27: =IFERROR(VLOOKUP(A27,Exposure_Hazard!B$17:Q$47,7,FALSE),"n/a") -> 1 | I27: =IFERROR(VLOOKUP(A27,Vulnerability!A$17:F$47,6,FALSE),"n/a") -> 4 | J27: =IFERROR(VLOOKUP(A27,'Insurance coverage'!B$18:AD$47,7,FALSE),"n/a") -> 4 | L27: =VLOOKUP(A27,'Historical Protection gap'!$A$17:$AC$47,15,FALSE) -> 1 | N27: 4 | O27: =IFERROR(VLOOKUP(A27,Exposure_Hazard!B$17:Q$47,11,FALSE),"n/a") -> 4 | P27: n/a | Q27: =IFERROR(VLOOKUP(A27,'Insurance coverage'!B$18:AD$47,14,FALSE),"n/a") -> 4 | S27: =VLOOKUP(A27,'Historical Protection gap'!$A$17:$AC$47,22,FALSE) -> 1 | U27: 0 | V27: =IFERROR(VLOOKUP(A27,Exposure_Hazard!B$17:T$47,15,FALSE),"n/a") -> 1 | W27: n/a | X27: =IFERROR(VLOOKUP(A27,'Insurance coverage'!B$18:AD$47,17,FALSE),"n/a") -> 0 | Z27: =VLOOKUP(A27,'Historical Protection gap'!$A$17:$AC$47,29,FALSE) -> 1 | AB27: 1.6 | AC27: =IFERROR(VLOOKUP(A27,Exposure_Hazard!B$17:T$47,19,FALSE),"n/a") -> 2 | AD27: =IFERROR(VLOOKUP(A27,Vulnerability!$A$17:$M$47,13,FALSE),"n/a") -> 2 | AE27: =IFERROR(VLOOKUP(A27,'Insurance coverage'!B$18:AD$47,28,FALSE),"n/a") -> 1
A28: Norway | B28: 1 | C28: 0 | E28: =VLOOKUP(A28,'Historical Protection gap'!$A$17:$AC$47,8,FALSE) -> 1 | G28: 0 | H28: =IFERROR(VLOOKUP(A28,Exposure_Hazard!B$17:Q$47,7,FALSE),"n/a") -> 1 | I28: =IFERROR(VLOOKUP(A28,Vulnerability!A$17:F$47,6,FALSE),"n/a") -> 4 | J28: =IFERROR(VLOOKUP(A28,'Insurance coverage'!B$18:AD$47,7,FALSE),"n/a") -> 0 | L28: =VLOOKUP(A28,'Historical Protection gap'!$A$17:$AC$47,15,FALSE) -> 1 | N28: 0 | O28: =IFERROR(VLOOKUP(A28,Exposure_Hazard!B$17:Q$47,11,FALSE),"n/a") -> 1 | P28: n/a | Q28: =IFERROR(VLOOKUP(A28,'Insurance coverage'!B$18:AD$47,14,FALSE),"n/a") -> 0 | S28: =VLOOKUP(A28,'Historical Protection gap'!$A$17:$AC$47,22,FALSE) -> 1 | U28: 0 | V28: =IFERROR(VLOOKUP(A28,Exposure_Hazard!B$17:T$47,15,FALSE),"n/a") -> 1 | W28: n/a | X28: =IFERROR(VLOOKUP(A28,'Insurance coverage'!B$18:AD$47,17,FALSE),"n/a") -> 0 | Z28: =VLOOKUP(A28,'Historical Protection gap'!$A$17:$AC$47,29,FALSE) -> 1 | AB28: 0 | AC28: =IFERROR(VLOOKUP(A28,Exposure_Hazard!B$17:T$47,19,FALSE),"n/a") -> 2 | AD28: =IFERROR(VLOOKUP(A28,Vulnerability!$A$17:$M$47,13,FALSE),"n/a") -> 1 | AE28: =IFERROR(VLOOKUP(A28,'Insurance coverage'!B$18:AD$47,28,FALSE),"n/a") -> 0
A29: Poland | B29: 1.5 | C29: 1.6 | E29: =VLOOKUP(A29,'Historical Protection gap'!$A$17:$AC$47,8,FALSE) -> 1 | G29: 2 | H29: =IFERROR(VLOOKUP(A29,Exposure_Hazard!B$17:Q$47,7,FALSE),"n/a") -> 1 | I29: =IFERROR(VLOOKUP(A29,Vulnerability!A$17:F$47,6,FALSE),"n/a") -> 4 | J29: =IFERROR(VLOOKUP(A29,'Insurance coverage'!B$18:AD$47,7,FALSE),"n/a") -> 4 | L29: =VLOOKUP(A29,'Historical Protection gap'!$A$17:$AC$47,15,FALSE) -> 2 | N29: 1 | O29: =IFERROR(VLOOKUP(A29,Exposure_Hazard!B$17:Q$47,11,FALSE),"n/a") -> 1 | P29: n/a | Q29: =IFERROR(VLOOKUP(A29,'Insurance coverage'!B$18:AD$47,14,FALSE),"n/a") -> 1 | S29: =VLOOKUP(A29,'Historical Protection gap'!$A$17:$AC$47,22,FALSE) -> 2 | U29: 1 | V29: =IFERROR(VLOOKUP(A29,Exposure_Hazard!B$17:T$47,15,FALSE),"n/a") -> 1 | W29: n/a | X29: =IFERROR(VLOOKUP(A29,'Insurance coverage'!B$18:AD$47,17,FALSE),"n/a") -> n/a | Z29: =VLOOKUP(A29,'Historical Protection gap'!$A$17:$AC$47,29,FALSE) -> 1 | AB29: 2.3 | AC29: =IFERROR(VLOOKUP(A29,Exposure_Hazard!B$17:T$47,19,FALSE),"n/a") -> 3 | AD29: =IFERROR(VLOOKUP(A29,Vulnerability!$A$17:$M$47,13,FALSE),"n/a") -> 1 | AE29: =IFERROR(VLOOKUP(A29,'Insurance coverage'!B$18:AD$47,28,FALSE),"n/a") -> n/a
A30: Portugal | B30: 1.5 | C30: 2 | E30: =VLOOKUP(A30,'Historical Protection gap'!$A$17:$AC$47,8,FALSE) -> 1 | G30: 1.8 | H30: =IFERROR(VLOOKUP(A30,Exposure_Hazard!B$17:Q$47,7,FALSE),"n/a") -> 1 | I30: =IFERROR(VLOOKUP(A30,Vulnerability!A$17:F$47,6,FALSE),"n/a") -> 4 | J30: =IFERROR(VLOOKUP(A30,'Insurance coverage'!B$18:AD$47,7,FALSE),"n/a") -> 3 | L30: =VLOOKUP(A30,'Historical Protection gap'!$A$17:$AC$47,15,FALSE) -> 1 | N30: 1.6 | O30: =IFERROR(VLOOKUP(A30,Exposure_Hazard!B$17:Q$47,11,FALSE),"n/a") -> 1 | P30: n/a | Q30: =IFERROR(VLOOKUP(A30,'Insurance coverage'!B$18:AD$47,14,FALSE),"n/a") -> 3 | S30: =VLOOKUP(A30,'Historical Protection gap'!$A$17:$AC$47,22,FALSE) -> 3 | U30: 3 | V30: =IFERROR(VLOOKUP(A30,Exposure_Hazard!B$17:T$47,15,FALSE),"n/a") -> 3 | W30: n/a | X30: =IFERROR(VLOOKUP(A30,'Insurance coverage'!B$18:AD$47,17,FALSE),"n/a") -> n/a | Z30: =VLOOKUP(A30,'Historical Protection gap'!$A$17:$AC$47,29,FALSE) -> 1 | AB30: 1.7 | AC30: =IFERROR(VLOOKUP(A30,Exposure_Hazard!B$17:T$47,19,FALSE),"n/a") -> 2 | AD30: =IFERROR(VLOOKUP(A30,Vulnerability!$A$17:$M$47,13,FALSE),"n/a") -> 1 | AE30: =IFERROR(VLOOKUP(A30,'Insurance coverage'!B$18:AD$47,28,FALSE),"n/a") -> n/a
A31: Romania | B31: 1.8 | C31: 1.7 | E31: =VLOOKUP(A31,'Historical Protection gap'!$A$17:$AC$47,8,FALSE) -> 1 | G31: 3.1 | H31: =IFERROR(VLOOKUP(A31,Exposure_Hazard!B$17:Q$47,7,FALSE),"n/a") -> 3 | I31: =IFERROR(VLOOKUP(A31,Vulnerability!A$17:F$47,6,FALSE),"n/a") -> 4 | J31: =IFERROR(VLOOKUP(A31,'Insurance coverage'!B$18:AD$47,7,FALSE),"n/a") -> 3 | L31: =VLOOKUP(A31,'Historical Protection gap'!$A$17:$AC$47,15,FALSE) -> 2 | N31: 1.6 | O31: =IFERROR(VLOOKUP(A31,Exposure_Hazard!B$17:Q$47,11,FALSE),"n/a") -> 1 | P31: n/a | Q31: =IFERROR(VLOOKUP(A31,'Insurance coverage'!B$18:AD$47,14,FALSE),"n/a") -> 3 | S31: =VLOOKUP(A31,'Historical Protection gap'!$A$17:$AC$47,22,FALSE) -> 3 | U31: 1 | V31: =IFERROR(VLOOKUP(A31,Exposure_Hazard!B$17:T$47,15,FALSE),"n/a") -> 1 | W31: n/a | X31: =IFERROR(VLOOKUP(A31,'Insurance coverage'!B$18:AD$47,17,FALSE),"n/a") -> n/a | Z31: =VLOOKUP(A31,'Historical Protection gap'!$A$17:$AC$47,29,FALSE) -> 1 | AB31: 1.2 | AC31: =IFERROR(VLOOKUP(A31,Exposure_Hazard!B$17:T$47,19,FALSE),"n/a") -> 1 | AD31: =IFERROR(VLOOKUP(A31,Vulnerability!$A$17:$M$47,13,FALSE),"n/a") -> 2 | AE31: =IFERROR(VLOOKUP(A31,'Insurance coverage'!B$18:AD$47,28,FALSE),"n/a") -> n/a
A32: Slovakia | B32: 1.3 | C32: 2.4 | E32: =VLOOKUP(A32,'Historical Protection gap'!$A$17:$AC$47,8,FALSE) -> 0 | G32: 1.9 | H32: =IFERROR(VLOOKUP(A32,Exposure_Hazard!B$17:Q$47,7,FALSE),"n/a") -> 1 | I32: =IFERROR(VLOOKUP(A32,Vulnerability!A$17:F$47,6,FALSE),"n/a") -> 3 | J32: =IFERROR(VLOOKUP(A32,'Insurance coverage'!B$18:AD$47,7,FALSE),"n/a") -> 4 | L32: =VLOOKUP(A32,'Historical Protection gap'!$A$17:$AC$47,15,FALSE) -> 2 | N32: 3 | O32: =IFERROR(VLOOKUP(A32,Exposure_Hazard!B$17:Q$47,11,FALSE),"n/a") -> 3 | P32: n/a | Q32: =IFERROR(VLOOKUP(A32,'Insurance coverage'!B$18:AD$47,14,FALSE),"n/a") -> 3 | S32: =VLOOKUP(A32,'Historical Protection gap'!$A$17:$AC$47,22,FALSE) -> 1 | U32: 3 | V32: =IFERROR(VLOOKUP(A32,Exposure_Hazard!B$17:T$47,15,FALSE),"n/a") -> 2 | W32: n/a | X32: =IFERROR(VLOOKUP(A32,'Insurance coverage'!B$18:AD$47,17,FALSE),"n/a") -> 4 | Z32: =VLOOKUP(A32,'Historical Protection gap'!$A$17:$AC$47,29,FALSE) -> 2 | AB32: 1.6 | AC32: =IFERROR(VLOOKUP(A32,Exposure_Hazard!B$17:T$47,19,FALSE),"n/a") -> 1 | AD32: =IFERROR(VLOOKUP(A32,Vulnerability!$A$17:$M$47,13,FALSE),"n/a") -> 2 | AE32: =IFERROR(VLOOKUP(A32,'Insurance coverage'!B$18:AD$47,28,FALSE),"n/a") -> 3
A33: Slovenia | B33: 1.8 | C33: 1.5 | E33: =VLOOKUP(A33,'Historical Protection gap'!$A$17:$AC$47,8,FALSE) -> 1 | G33: 2.4 | H33: =IFERROR(VLOOKUP(A33,Exposure_Hazard!B$17:Q$47,7,FALSE),"n/a") -> 2 | I33: =IFERROR(VLOOKUP(A33,Vulnerability!A$17:F$47,6,FALSE),"n/a") -> 4 | J33: =IFERROR(VLOOKUP(A33,'Insurance coverage'!B$18:AD$47,7,FALSE),"n/a") -> n/a | L33: =VLOOKUP(A33,'Historical Protection gap'!$A$17:$AC$47,15,FALSE) -> 2 | N33: 1.3 | O33: =IFERROR(VLOOKUP(A33,Exposure_Hazard!B$17:Q$47,11,FALSE),"n/a") -> 1 | P33: n/a | Q33: =IFERROR(VLOOKUP(A33,'Insurance coverage'!B$18:AD$47,14,FALSE),"n/a") -> 2 | S33: =VLOOKUP(A33,'Historical Protection gap'!$A$17:$AC$47,22,FALSE) -> 2 | U33: 1 | V33: =IFERROR(VLOOKUP(A33,Exposure_Hazard!B$17:T$47,15,FALSE),"n/a") -> 1 | W33: n/a | X33: =IFERROR(VLOOKUP(A33,'Insurance coverage'!B$18:AD$47,17,FALSE),"n/a") -> n/a | Z33: =VLOOKUP(A33,'Historical Protection gap'!$A$17:$AC$47,29,FALSE) -> 2 | AB33: 1.2 | AC33: =IFERROR(VLOOKUP(A33,Exposure_Hazard!B$17:T$47,19,FALSE),"n/a") -> 1 | AD33: =IFERROR(VLOOKUP(A33,Vulnerability!$A$17:$M$47,13,FALSE),"n/a") -> 2 | AE33: =IFERROR(VLOOKUP(A33,'Insurance coverage'!B$18:AD$47,28,FALSE),"n/a") -> n/a
A34: Spain | B34: 1.3 | C34: 0.9 | E34: =VLOOKUP(A34,'Historical Protection gap'!$A$17:$AC$47,8,FALSE) -> 1 | G34: 0 | H34: =IFERROR(VLOOKUP(A34,Exposure_Hazard!B$17:Q$47,7,FALSE),"n/a") -> 1 | I34: =IFERROR(VLOOKUP(A34,Vulnerability!A$17:F$47,6,FALSE),"n/a") -> 4 | J34: =IFERROR(VLOOKUP(A34,'Insurance coverage'!B$18:AD$47,7,FALSE),"n/a") -> 0 | L34: =VLOOKUP(A34,'Historical Protection gap'!$A$17:$AC$47,15,FALSE) -> 1 | N34: 0 | O34: =IFERROR(VLOOKUP(A34,Exposure_Hazard!B$17:Q$47,11,FALSE),"n/a") -> 1 | P34: n/a | Q34: =IFERROR(VLOOKUP(A34,'Insurance coverage'!B$18:AD$47,14,FALSE),"n/a") -> 0 | S34: =VLOOKUP(A34,'Historical Protection gap'!$A$17:$AC$47,22,FALSE) -> 2 | U34: 2 | V34: =IFERROR(VLOOKUP(A34,Exposure_Hazard!B$17:T$47,15,FALSE),"n/a") -> 2 | W34: n/a | X34: =IFERROR(VLOOKUP(A34,'Insurance coverage'!B$18:AD$47,17,FALSE),"n/a") -> n/a | Z34: =VLOOKUP(A34,'Historical Protection gap'!$A$17:$AC$47,29,FALSE) -> 1 | AB34: 1.4 | AC34: =IFERROR(VLOOKUP(A34,Exposure_Hazard!B$17:T$47,19,FALSE),"n/a") -> 2 | AD34: =IFERROR(VLOOKUP(A34,Vulnerability!$A$17:$M$47,13,FALSE),"n/a") -> 1 | AE34: =IFERROR(VLOOKUP(A34,'Insurance coverage'!B$18:AD$47,28,FALSE),"n/a") -> 1
A35: Sweden | B35: 1 | C35: 0.4 | E35: =VLOOKUP(A35,'Historical Protection gap'!$A$17:$AC$47,8,FALSE) -> 0 | G35: 0 | H35: =IFERROR(VLOOKUP(A35,Exposure_Hazard!B$17:Q$47,7,FALSE),"n/a") -> 0 | I35: =IFERROR(VLOOKUP(A35,Vulnerability!A$17:F$47,6,FALSE),"n/a") -> 3 | J35: =IFERROR(VLOOKUP(A35,'Insurance coverage'!B$18:AD$47,7,FALSE),"n/a") -> 0 | L35: =VLOOKUP(A35,'Historical Protection gap'!$A$17:$AC$47,15,FALSE) -> 1 | N35: 0 | O35: =IFERROR(VLOOKUP(A35,Exposure_Hazard!B$17:Q$47,11,FALSE),"n/a") -> 1 | P35: n/a | Q35: =IFERROR(VLOOKUP(A35,'Insurance coverage'!B$18:AD$47,14,FALSE),"n/a") -> 0 | S35: =VLOOKUP(A35,'Historical Protection gap'!$A$17:$AC$47,22,FALSE) -> 1 | U35: 0 | V35: =IFERROR(VLOOKUP(A35,Exposure_Hazard!B$17:T$47,15,FALSE),"n/a") -> 1 | W35: n/a | X35: =IFERROR(VLOOKUP(A35,'Insurance coverage'!B$18:AD$47,17,FALSE),"n/a") -> 0 | Z35: =VLOOKUP(A35,'Historical Protection gap'!$A$17:$AC$47,29,FALSE) -> 2 | AB35: 1.6 | AC35: =IFERROR(VLOOKUP(A35,Exposure_Hazard!B$17:T$47,19,FALSE),"n/a") -> 2 | AD35: =IFERROR(VLOOKUP(A35,Vulnerability!$A$17:$M$47,13,FALSE),"n/a") -> 2 | AE35: =IFERROR(VLOOKUP(A35,'Insurance coverage'!B$18:AD$47,28,FALSE),"n/a") -> 1
A37: A protection gap below 3 is not expected to be material.

Sheet Historical Protection gap
A1: HISTORICAL PROTECTION GAP | H1: Return to Intro tab
A3: Source link | B3: https://www.munichre.com/en/solutions/for-industry-clients/natcatservice.html
B4: https://www.sigma-explorer.com/
B5: https://www.consorseguros.es/web/documents/10184/44193/Estadistica_Riesgos_Extraordinarios_1971_2014/14ca6778-2081-4060-a86d-728d9a17c522
A6: Data | B6: NATCAT Service MunichRe* (2018 USD values - millions) & Swiss Re Sigma data and Consorcio de Compensación de Seguros CCS for Spain
A7: Time serie | B7: 1980-2018 & 1970-2019
A8: Legend
A9: 0 | B9: no risk
A10: 1 | B10: low risk
A11: 2 | B11: low/medium risk
A12: 3 | B12: medium/high risk
A13: 4 | B13: high risk
A14: n/a | B14: not available
B16: Geophysical | I16: Hydrological | P16: Climatological | W16: Meteorological
A17: Country | B17: Economic losses Geo (MunichRe) | C17: Insured losses Geo (MunichRe) | D17: Annual uninsured normalized by GDP Geo | E17: Economic losses earthquake (SwissRe) | F17: Insured losses earthquake (SwissRe) | G17: Annual uninsured normalized by GDP earthquake | H17: Score Annual uninsured normalized by GDP Geo | I17: economic losses hydro (MunichRe) | J17: insured losses hydro (MunichRe) | K17: Annual uninsured normalized by GDP hydro | L17: Economic losses flood (SwissRe) | M17: Insured losses flood (SwissRe) | N17: Annual uninsured normalized by GDP flood | O17: Score Annual uninsured normalized by GDP hydro | P17: Economic losses clima (MunichRe) | Q17: Insured losses clima (MunichRe) | R17: Annual uninsured normalized by GDP clima | V17: Score uninsured clima | W17: economic losses met (MunichRe) | X17: insured losses met (MunichRe) | Y17: Annual uninsured normalized by GDP met | Z17: Economic losses windstorm (SwissRe) | AA17: Insured losses windstorm (SwissRe) | AB17: Annual uninsured normalized by GDP windstorm | AC17: Score uninsured met
A18: Austria | B18: 0 | C18: 0 | D18: =(B18-C18)/(VLOOKUP(A18,GDP!A$5:F$41,6,FALSE)*39) -> 0 | H18: =MROUND((IF(D18=0,0,IF(D18<0.0001,1,IF(D18<0.0005,2,IF(D18<0.001,3,4))))+IF(G18=0,0,IF(G18<0.0001,1,IF(G18<0.0005,2,IF(G18<0.001,3,4)))))/(COUNTIF(D18,"<>")+COUNTIF(G18,"<>")),1) -> 0 | I18: 7900 | J18: 1300 | K18: =(I18-J18)/(VLOOKUP(A18,GDP!A$5:F$41,6,FALSE)*39) -> 0.0003853070629 | O18: =MROUND((IF(K18=0,0,IF(K18<0.0001,1,IF(K18<0.0005,2,IF(K18<0.001,3,4))))+IF(N18=0,0,IF(N18<0.0001,1,IF(N18<0.0005,2,IF(N18<0.001,3,4)))))/(COUNTIF(K18,"<>")+COUNTIF(N18,"<>")),1) -> 2 | P18: 3400 | Q18: 1100 | R18: =(P18-Q18)/(VLOOKUP(A18,GDP!A$5:F$41,6,FALSE)*39) -> 0.0001342736734 | V18: =IF(R18=0,0,IF(R18<0.0001,1,IF(R18<0.0005,2,IF(R18<0.001,3,4)))) -> 2 | W18: 4600 | X18: 2600 | Y18: =(W18-X18)/(VLOOKUP(A18,GDP!A$5:F$41,6,FALSE)*39) -> 0.000116759716 | AC18: =MROUND((IF(Y18=0,0,IF(Y18<0.0001,1,IF(Y18<0.0005,2,IF(Y18<0.001,3,4))))+IF(AB18=0,0,IF(AB18<0.0001,1,IF(AB18<0.0005,2,IF(AB18<0.001,3,4)))))/(COUNTIF(Y18,"<>")+COUNTIF(AB18,"<>")),1) -> 2
A19: Belgium | B19: 160 | C19: 0 | D19: =(B19-C19)/(VLOOKUP(A19,GDP!A$5:F$41,6,FALSE)*39) -> 7.840263766e-06 | H19: =MROUND((IF(D19=0,0,IF(D19<0.0001,1,IF(D19<0.0005,2,IF(D19<0.001,3,4))))+IF(G19=0,0,IF(G19<0.0001,1,IF(G19<0.0005,2,IF(G19<0.001,3,4)))))/(COUNTIF(D19,"<>")+COUNTIF(G19,"<>")),1) -> 1 | I19: 660 | J19: 370 | K19: =(I19-J19)/(VLOOKUP(A19,GDP!A$5:F$41,6,FALSE)*39) -> 1.421047808e-05 | O19: =MROUND((IF(K19=0,0,IF(K19<0.0001,1,IF(K19<0.0005,2,IF(K19<0.001,3,4))))+IF(N19=0,0,IF(N19<0.0001,1,IF(N19<0.0005,2,IF(N19<0.001,3,4)))))/(COUNTIF(K19,"<>")+COUNTIF(N19,"<>")),1) -> 1 | P19: 110 | Q19: 1 | R19: =(P19-Q19)/(VLOOKUP(A19,GDP!A$5:F$41,6,FALSE)*39) -> 5.341179691e-06 | V19: =IF(R19=0,0,IF(R19<0.0001,1,IF(R19<0.0005,2,IF(R19<0.001,3,4)))) -> 1 | W19: 4600 | X19: 2800 | Y19: =(W19-X19)/(VLOOKUP(A19,GDP!A$5:F$41,6,FALSE)*39) -> 8.820296737e-05 | Z19: 4470 | AA19: 2980 | AB19: =(Z19-AA19)/(VLOOKUP(A19,GDP!A$5:F$41,6,FALSE)*50) -> 5.694971593e-05 | AC19: =MROUND((IF(Y19=0,0,IF(Y19<0.0001,1,IF(Y19<0.0005,2,IF(Y19<0.001,3,4))))+IF(AB19=0,0,IF(AB19<0.0001,1,IF(AB19<0.0005,2,IF(AB19<0.001,3,4)))))/(COUNTIF(Y19,"<>")+COUNTIF(AB19,"<>")),1) -> 1
A20: Bulgaria | B20: 17 | C20: 0 | D20: =(B20-C20)/(VLOOKUP(A20,GDP!A$5:F$41,6,FALSE)*39) -> 6.825171319e-06 | H20: 1 | I20: 1500 | J20: 15 | K20: =(I20-J20)/(VLOOKUP(A20,GDP!A$5:F$41,6,FALSE)*39) -> 0.0005961987887 | O20: 3 | P20: 130 | Q20: 0 | R20: =(P20-Q20)/(VLOOKUP(A20,GDP!A$5:F$41,6,FALSE)*39) -> 5.219248655e-05 | V20: 1 | W20: 680 | X20: 120 | Y20: =(W20-X20)/(VLOOKUP(A20,GDP!A$5:F$41,6,FALSE)*39) -> 0.0002248291729 | AC20: 2
A21: Croatia | B21: 680 | C21: 0 | D21: =(B21-C21)/(VLOOKUP(A21,GDP!A$5:F$41,6,FALSE)*39) -> 0.0002966020027 | H21: 2 | I21: 2100 | J21: 95 | K21: =(I21-J21)/(VLOOKUP(A21,GDP!A$5:F$41,6,FALSE)*39) -> 0.0008745397285 | O21: 3 | P21: 1400 | Q21: 0 | R21: =(P21-Q21)/(VLOOKUP(A21,GDP!A$5:F$41,6,FALSE)*39) -> 0.000610651182 | V21: 3 | W21: 14 | X21: 0 | Y21: =(W21-X21)/(VLOOKUP(A21,GDP!A$5:F$41,6,FALSE)*39) -> 6.10651182e-06 | AC21: 1
A22: Cyprus | B22: 33 | C22: 0 | D22: =(B22-C22)/(VLOOKUP(A22,GDP!A$5:F$41,6,FALSE)*39) -> 3.515427722e-05 | H22: 1 | I22: 6.1 | J22: 1.2 | K22: =(I22-J22)/(VLOOKUP(A22,GDP!A$5:F$41,6,FALSE)*39) -> 5.219877527e-06 | O22: 1 | P22: 410 | Q22: 0 | R22: =(P22-Q22)/(VLOOKUP(A22,GDP!A$5:F$41,6,FALSE)*39) -> 0.0004367652625 | V22: 2 | W22: 22 | X22: 7.8 | Y22: =(W22-X22)/(VLOOKUP(A22,GDP!A$5:F$41,6,FALSE)*39) -> 1.512699202e-05 | AC22: 1
A23: Czech Republic | B23: 0.3 | C23: 0 | D23: =(B23-C23)/(VLOOKUP(A23,GDP!A$5:F$41,6,FALSE)*39) -> 3.203212717e-08 | H23: 1 | I23: 10000 | J23: 3600 | K23: =(I23-J23)/(VLOOKUP(A23,GDP!A$5:F$41,6,FALSE)*39) -> 0.0006833520464 | O23: 3 | P23: 1500 | Q23: 190 | R23: =(P23-Q23)/(VLOOKUP(A23,GDP!A$5:F$41,6,FALSE)*39) -> 0.000139873622 | V23: 2 | W23: 1000 | X23: 410 | Y23: =(W23-X23)/(VLOOKUP(A23,GDP!A$5:F$41,6,FALSE)*39) -> 6.299651678e-05 | AC23: 1
A24: Denmark | B24: 1.5 | C24: 0 | D24: =(B24-C24)/(VLOOKUP(A24,GDP!A$5:F$41,6,FALSE)*39) -> 1.120880336e-07 | H24: 1 | I24: 1900 | J24: 1300 | K24: =(I24-J24)/(VLOOKUP(A24,GDP!A$5:F$41,6,FALSE)*39) -> 4.483521345e-05 | L24: 1590 | M24: 1230 | N24: =(L24-M24)/(VLOOKUP(A24,GDP!A$5:F$41,6,FALSE)*50) -> 2.09828799e-05 | O24: 1 | P24: 1700 | Q24: 0 | R24: =(P24-Q24)/(VLOOKUP(A24,GDP!A$5:F$41,6,FALSE)*39) -> 0.0001270331048 | V24: 2 | W24: 8300 | X24: 5600 | Y24: =(W24-X24)/(VLOOKUP(A24,GDP!A$5:F$41,6,FALSE)*39) -> 0.0002017584605 | Z24: 10540 | AA24: 5640 | AB24: =(Z24-AA24)/(VLOOKUP(A24,GDP!A$5:F$41,6,FALSE)*50) -> 0.0002856003097 | AC24: 2
A25: Estonia | B25: 0 | C25: 0 | D25: =(B25-C25)/(VLOOKUP(A25,GDP!A$5:F$41,6,FALSE)*39) -> 0 | H25: 0 | I25: 0 | J25: 0 | K25: =(I25-J25)/(VLOOKUP(A25,GDP!A$5:F$41,6,FALSE)*39) -> 0 | O25: 0 | P25: 29 | Q25: 0 | R25: =(P25-Q25)/(VLOOKUP(A25,GDP!A$5:F$41,6,FALSE)*39) -> 2.508138273e-05 | V25: 1 | W25: 93 | X25: 35 | Y25: =(W25-X25)/(VLOOKUP(A25,GDP!A$5:F$41,6,FALSE)*39) -> 5.016276547e-05 | AC25: 1
A26: Finland | B26: 0 | C26: 0 | D26: =(B26-C26)/(VLOOKUP(A26,GDP!A$5:F$41,6,FALSE)*39) -> 0 | H26: 0 | I26: 93 | J26: 5.5 | K26: =(I26-J26)/(VLOOKUP(A26,GDP!A$5:F$41,6,FALSE)*39) -> 8.432299737e-06 | O26: 1 | P26: 1200 | Q26: 0 | R26: =(P26-Q26)/(VLOOKUP(A26,GDP!A$5:F$41,6,FALSE)*39) -> 0.0001156429678 | V26: 2 | W26: 760 | X26: 420 | Y26: =(W26-X26)/(VLOOKUP(A26,GDP!A$5:F$41,6,FALSE)*39) -> 3.276550755e-05 | AC26: 1
A27: France | B27: 150 | C27: 110 | D27: =(B27-C27)/(VLOOKUP(A27,GDP!A$5:F$41,6,FALSE)*39) -> 3.815466592e-07 | E27: 1270 | F27: 120 | G27: =(E27-F27)/(VLOOKUP(A27,GDP!A$5:F$41,6,FALSE)*50) -> 8.556183832e-06 | H27: 1 | I27: 20000 | J27: 11000 | K27: =(I27-J27)/(VLOOKUP(A27,GDP!A$5:F$41,6,FALSE)*39) -> 8.584799831e-05 | L27: 16380 | M27: 9970 | N27: =(L27-M27)/(VLOOKUP(A27,GDP!A$5:F$41,6,FALSE)*50) -> 4.769142466e-05 | O27: 1 | P27: 12000 | Q27: 2200 | R27: =(P27-Q27)/(VLOOKUP(A27,GDP!A$5:F$41,6,FALSE)*39) -> 9.34789315e-05 | V27: 1 | W27: 39000 | X27: 23000 | Y27: =(W27-X27)/(VLOOKUP(A27,GDP!A$5:F$41,6,FALSE)*39) -> 0.0001526186637 | Z27: 44440 | AA27: 25330 | AB27: =(Z27-AA27)/(VLOOKUP(A27,GDP!A$5:F$41,6,FALSE)*50) -> 0.0001421814548 | AC27: 2
A28: Germany | B28: 95 | C28: 8.6 | D28: =(B28-C28)/(VLOOKUP(A28,GDP!A$5:F$41,6,FALSE)*39) -> 5.796486229e-07 | H28: 1 | I28: 37000 | J28: 8000 | K28: =(I28-J28)/(VLOOKUP(A28,GDP!A$5:F$41,6,FALSE)*39) -> 0.0001945579869 | L28: 43030 | M28: 10250 | N28: =(L28-M28)/(VLOOKUP(A28,GDP!A$5:F$41,6,FALSE)*50) -> 0.000171535739 | O28: 2 | P28: 8000 | Q28: 1600 | R28: =(P28-Q28)/(VLOOKUP(A28,GDP!A$5:F$41,6,FALSE)*39) -> 4.293693503e-05 | V28: 1 | W28: 69000 | X28: 44000 | Y28: =(W28-X28)/(VLOOKUP(A28,GDP!A$5:F$41,6,FALSE)*39) -> 0.0001677224025 | Z28: 16160 | AA28: 11400 | AB28: =(Z28-AA28)/(VLOOKUP(A28,GDP!A$5:F$41,6,FALSE)*50) -> 2.490878944e-05 | AC28: 2
A29: Greece | B29: 12400 | C29: 210 | D29: =(B29-C29)/(VLOOKUP(A29,GDP!A$5:F$41,6,FALSE)*39) -> 0.001486041388 | H29: 4 | I29: 1100 | J29: 110 | K29: =(I29-J29)/(VLOOKUP(A29,GDP!A$5:F$41,6,FALSE)*39) -> 0.0001206875287 | O29: 2 | P29: 6600 | Q29: 46 | R29: =(P29-Q29)/(VLOOKUP(A29,GDP!A$5:F$41,6,FALSE)*39) -> 0.0007989758211 | V29: 3 | W29: 1100 | X29: 16 | Y29: =(W29-X29)/(VLOOKUP(A29,GDP!A$5:F$41,6,FALSE)*39) -> 0.0001321467486 | AC29: 2
A30: Hungary | B30: 120 | C30: 73 | D30: =(B30-C30)/(VLOOKUP(A30,GDP!A$5:F$41,6,FALSE)*39) -> 7.910894573e-06 | H30: 1 | I30: 1400 | J30: 59 | K30: =(I30-J30)/(VLOOKUP(A30,GDP!A$5:F$41,6,FALSE)*39) -> 0.0002257129707 | O30: 2 | P30: 3800 | Q30: 0 | R30: =(P30-Q30)/(VLOOKUP(A30,GDP!A$5:F$41,6,FALSE)*39) -> 0.000639604242 | V30: 3 | W30: 250 | X30: 84 | Y30: =(W30-X30)/(VLOOKUP(A30,GDP!A$5:F$41,6,FALSE)*39) -> 2.794060636e-05 | AC30: 1
A31: Iceland | B31: 280 | C31: 140 | D31: =(B31-C31)/(VLOOKUP(A31,GDP!A$5:F$41,6,FALSE)*39) -> 0.0001446416107 | H31: 2 | I31: 41 | J31: 24 | K31: =(I31-J31)/(VLOOKUP(A31,GDP!A$5:F$41,6,FALSE)*39) -> 1.756362416e-05 | O31: 1 | P31: 0 | Q31: 0 | R31: =(P31-Q31)/(VLOOKUP(A31,GDP!A$5:F$41,6,FALSE)*39) -> 0 | V31: 0 | W31: 55 | X31: 24 | Y31: =(W31-X31)/(VLOOKUP(A31,GDP!A$5:F$41,6,FALSE)*39) -> 3.202778523e-05 | AC31: 1
A32: Ireland | B32: 0 | C32: 0 | D32: =(B32-C32)/(VLOOKUP(A32,GDP!A$5:F$41,6,FALSE)*39) -> 0 | H32: 0 | I32: 2000 | J32: 900 | K32: =(I32-J32)/(VLOOKUP(A32,GDP!A$5:F$41,6,FALSE)*39) -> 7.575119111e-05 | L32: 1370 | M32: 810 | N32: =(L32-M32)/(VLOOKUP(A32,GDP!A$5:F$41,6,FALSE)*50) -> 3.008010934e-05 | O32: 1 | P32: 960 | Q32: 760 | R32: =(P32-Q32)/(VLOOKUP(A32,GDP!A$5:F$41,6,FALSE)*39) -> 1.377294384e-05 | V32: 1 | W32: 1600 | X32: 710 | Y32: =(W32-X32)/(VLOOKUP(A32,GDP!A$5:F$41,6,FALSE)*39) -> 6.128960008e-05 | AC32: 1
A33: Italy | B33: 76000 | C33: 2300 | D33: =(B33-C33)/(VLOOKUP(A33,GDP!A$5:F$41,6,FALSE)*39) -> 0.0009396400065 | E33: 27150 | F33: 2700 | G33: =(E33-F33)/(VLOOKUP(A33,GDP!A$5:F$41,6,FALSE)*50) -> 0.0002431461949 | H33: 3 | I33: 39000 | J33: 1800 | K33: =(I33-J33)/(VLOOKUP(A33,GDP!A$5:F$41,6,FALSE)*39) -> 0.0004742823371 | L33: 12530 | M33: 1340 | N33: =(L33-M33)/(VLOOKUP(A33,GDP!A$5:F$41,6,FALSE)*50) -> 0.0001112804058 | O33: 2 | P33: 25700 | Q33: 260 | R33: =(P33-Q33)/(VLOOKUP(A33,GDP!A$5:F$41,6,FALSE)*39) -> 0.0003243479208 | V33: 2 | W33: 8300 | X33: 1700 | Y33: =(W33-X33)/(VLOOKUP(A33,GDP!A$5:F$41,6,FALSE)*39) -> 8.414686625e-05 | Z33: 8130 | AA33: 2150 | AB33: =(Z33-AA33)/(VLOOKUP(A33,GDP!A$5:F$41,6,FALSE)*50) -> 5.946888529e-05 | AC33: 1
A34: Latvia | B34: 0 | C34: 0 | D34: =(B34-C34)/(VLOOKUP(A34,GDP!A$5:F$41,6,FALSE)*39) -> 0 | H34: 0 | I34: 63 | J34: 0 | K34: =(I34-J34)/(VLOOKUP(A34,GDP!A$5:F$41,6,FALSE)*39) -> 4.882354394e-05 | O34: 1 | P34: 290 | Q34: 0 | R34: =(P34-Q34)/(VLOOKUP(A34,GDP!A$5:F$41,6,FALSE)*39) -> 0.0002247432975 | V34: 2 | W34: 340 | X34: 54 | Y34: =(W34-X34)/(VLOOKUP(A34,GDP!A$5:F$41,6,FALSE)*39) -> 0.00022164339 | AC34: 2
A35: Lithuania | B35: 0 | C35: 0 | D35: =(B35-C35)/(VLOOKUP(A35,GDP!A$5:F$41,6,FALSE)*39) -> 0 | H35: 0 | I35: 0.1 | J35: 0 | K35: =(I35-J35)/(VLOOKUP(A35,GDP!A$5:F$41,6,FALSE)*39) -> 4.974727591e-08 | O35: 1 | P35: 840 | Q35: 0 | R35: =(P35-Q35)/(VLOOKUP(A35,GDP!A$5:F$41,6,FALSE)*39) -> 0.0004178771176 | V35: 2 | W35: 72 | X35: 7.6 | Y35: =(W35-X35)/(VLOOKUP(A35,GDP!A$5:F$41,6,FALSE)*39) -> 3.203724568e-05 | AC35: 1
A36: Liechtenstein | D36: =(B36-C36)/(VLOOKUP(A36,GDP!A$5:F$41,6,FALSE)*39) -> 0 | H36: n/a | K36: =(I36-J36)/(VLOOKUP(A36,GDP!A$5:F$41,6,FALSE)*39) -> 0 | O36: n/a | R36: =(P36-Q36)/(VLOOKUP(A36,GDP!A$5:F$41,6,FALSE)*39) -> 0 | V36: n/a | Y36: =(W36-X36)/(VLOOKUP(A36,GDP!A$5:F$41,6,FALSE)*39) -> 0 | AC36: n/a
A37: Luxembourg | B37: 0 | C37: 0 | D37: =(B37-C37)/(VLOOKUP(A37,GDP!A$5:F$41,6,FALSE)*39) -> 0 | H37: 0 | I37: 80 | J37: 13 | K37: =(I37-J37)/(VLOOKUP(A37,GDP!A$5:F$41,6,FALSE)*39) -> 2.512264977e-05 | O37: 1 | P37: 6.6 | Q37: 0 | R37: =(P37-Q37)/(VLOOKUP(A37,GDP!A$5:F$41,6,FALSE)*39) -> 2.474768485e-06 | V37: 1 | W37: 710 | X37: 430 | Y37: =(W37-X37)/(VLOOKUP(A37,GDP!A$5:F$41,6,FALSE)*39) -> 0.0001049901781 | AC37: =MROUND((IF(Y37=0,0,IF(Y37<0.0001,1,IF(Y37<0.0005,2,IF(Y37<0.001,3,4))))+IF(AB37=0,0,IF(AB37<0.0001,1,IF(AB37<0.0005,2,IF(AB37<0.001,3,4)))))/(COUNTIF(Y37,"<>")+COUNTIF(AB37,"<>")),1) -> 2
A38: Malta | B38: 0 | C38: 0 | D38: =(B38-C38)/(VLOOKUP(A38,GDP!A$5:F$41,6,FALSE)*39) -> 0 | H38: 0 | I38: 46 | J38: 20 | K38: =(I38-J38)/(VLOOKUP(A38,GDP!A$5:F$41,6,FALSE)*39) -> 4.720409543e-05 | O38: 1 | P38: 0 | Q38: 0 | R38: =(P38-Q38)/(VLOOKUP(A38,GDP!A$5:F$41,6,FALSE)*39) -> 0 | V38: 0 | W38: 19 | X38: 7.2 | Y38: =(W38-X38)/(VLOOKUP(A38,GDP!A$5:F$41,6,FALSE)*39) -> 2.142339716e-05 | AC38: 1
A39: Netherlands | B39: 150 | C39: 43 | D39: =(B39-C39)/(VLOOKUP(A39,GDP!A$5:F$41,6,FALSE)*39) -> 3.112978948e-06 | H39: 1 | I39: 2400 | J39: 230 | K39: =(I39-J39)/(VLOOKUP(A39,GDP!A$5:F$41,6,FALSE)*39) -> 6.31323768e-05 | O39: 1 | P39: 200 | Q39: 65 | R39: =(P39-Q39)/(VLOOKUP(A39,GDP!A$5:F$41,6,FALSE)*39) -> 3.927590262e-06 | V39: 1 | W39: 7300 | X39: 4500 | Y39: =(W39-X39)/(VLOOKUP(A39,GDP!A$5:F$41,6,FALSE)*39) -> 8.146113136e-05 | Z39: 950 | AA39: 840 | AB39: =(Z39-AA39)/(VLOOKUP(A39,GDP!A$5:F$41,6,FALSE)*50) -> 2.496201811e-06 | AC39: 1
A40: Norway | B40: 4.1 | C40: 0 | D40: =(B40-C40)/(VLOOKUP(A40,GDP!A$5:F$41,6,FALSE)*39) -> 2.509502185e-07 | H40: 1 | I40: 730 | J40: 450 | K40: =(I40-J40)/(VLOOKUP(A40,GDP!A$5:F$41,6,FALSE)*39) -> 1.713806371e-05 | L40: 480 | M40: 240 | N40: =(L40-M40)/(VLOOKUP(A40,GDP!A$5:F$41,6,FALSE)*50) -> 1.145801973e-05 | O40: 1 | P40: 130 | Q40: 0 | R40: =(P40-Q40)/(VLOOKUP(A40,GDP!A$5:F$41,6,FALSE)*39) -> 7.956958149e-06 | V40: 1 | W40: 2800 | X40: 1500 | Y40: =(W40-X40)/(VLOOKUP(A40,GDP!A$5:F$41,6,FALSE)*39) -> 7.956958149e-05 | Z40: 530 | AA40: 320 | AB40: =(Z40-AA40)/(VLOOKUP(A40,GDP!A$5:F$41,6,FALSE)*50) -> 1.002576727e-05 | AC40: 1
A41: Poland | B41: 1.5 | C41: 0 | D41: =(B41-C41)/(VLOOKUP(A41,GDP!A$5:F$41,6,FALSE)*39) -> 6.788058873e-08 | H41: 1 | I41: 11000 | J41: 920 | K41: =(I41-J41)/(VLOOKUP(A41,GDP!A$5:F$41,6,FALSE)*39) -> 0.0004561575562 | L41: 11030 | M41: 3150 | N41: =(L41-M41)/(VLOOKUP(A41,GDP!A$5:F$41,6,FALSE)*50) -> 0.0002781475004 | O41: 2 | P41: 2600 | Q41: 2 | R41: =(P41-Q41)/(VLOOKUP(A41,GDP!A$5:F$41,6,FALSE)*39) -> 0.0001175691797 | V41: 2 | W41: 1000 | X41: 190 | Y41: =(W41-X41)/(VLOOKUP(A41,GDP!A$5:F$41,6,FALSE)*39) -> 3.665551791e-05 | AC41: 1
A42: Portugal | B42: 230 | C42: 0 | D42: =(B42-C42)/(VLOOKUP(A42,GDP!A$5:F$41,6,FALSE)*39) -> 2.534984675e-05 | H42: 1 | I42: 920 | J42: 170 | K42: =(I42-J42)/(VLOOKUP(A42,GDP!A$5:F$41,6,FALSE)*39) -> 8.266254374e-05 | O42: 1 | P42: 6100 | Q42: 290 | R42: =(P42-Q42)/(VLOOKUP(A42,GDP!A$5:F$41,6,FALSE)*39) -> 0.0006403591722 | V42: 3 | W42: 880 | X42: 260 | Y42: =(W42-X42)/(VLOOKUP(A42,GDP!A$5:F$41,6,FALSE)*39) -> 6.833436949e-05 | AC42: 1
A43: Romania | B43: 170 | C43: 45 | D43: =(B43-C43)/(VLOOKUP(A43,GDP!A$5:F$41,6,FALSE)*39) -> 1.375449016e-05 | H43: 1 | I43: 4400 | J43: 16 | K43: =(I43-J43)/(VLOOKUP(A43,GDP!A$5:F$41,6,FALSE)*39) -> 0.000482397479 | O43: 2 | P43: 4800 | Q43: 0 | R43: =(P43-Q43)/(VLOOKUP(A43,GDP!A$5:F$41,6,FALSE)*39) -> 0.0005281724223 | V43: 3 | W43: 310 | X43: 32 | Y43: =(W43-X43)/(VLOOKUP(A43,GDP!A$5:F$41,6,FALSE)*39) -> 3.058998612e-05 | AC43: 1
A44: Slovakia | B44: 0 | C44: 0 | D44: =(B44-C44)/(VLOOKUP(A44,GDP!A$5:F$41,6,FALSE)*39) -> 0 | H44: 0 | I44: 650 | J44: 31 | K44: =(I44-J44)/(VLOOKUP(A44,GDP!A$5:F$41,6,FALSE)*39) -> 0.0001555536174 | O44: 2 | P44: 380 | Q44: 0 | R44: =(P44-Q44)/(VLOOKUP(A44,GDP!A$5:F$41,6,FALSE)*39) -> 9.54933354e-05 | V44: 1 | W44: 480 | X44: 17 | Y44: =(W44-X44)/(VLOOKUP(A44,GDP!A$5:F$41,6,FALSE)*39) -> 0.0001163510902 | AC44: 2
A45: Slovenia | B45: 26 | C45: 1.1 | D45: =(B45-C45)/(VLOOKUP(A45,GDP!A$5:F$41,6,FALSE)*39) -> 1.225430705e-05 | H45: 1 | I45: 650 | J45: 31 | K45: =(I45-J45)/(VLOOKUP(A45,GDP!A$5:F$41,6,FALSE)*39) -> 0.0003046351833 | O45: 2 | P45: 800 | Q45: 25 | R45: =(P45-Q45)/(VLOOKUP(A45,GDP!A$5:F$41,6,FALSE)*39) -> 0.0003814091552 | V45: 2 | W45: 430 | X45: 180 | Y45: =(W45-X45)/(VLOOKUP(A45,GDP!A$5:F$41,6,FALSE)*39) -> 0.0001230352114 | AC45: 2
A46: Spain | B46: 1200 | C46: 626 | D46: =(B46-C46)/(VLOOKUP(A46,GDP!A$5:F$41,6,FALSE)*39) -> 1.075136905e-05 | H46: 1 | I46: 12000 | J46: 7060 | K46: =(I46-J46)/(VLOOKUP(A46,GDP!A$5:F$41,6,FALSE)*39) -> 9.252920406e-05 | L46: 2230 | M46: 880 | N46: =(L46-M46)/(VLOOKUP(A46,GDP!A$5:F$41,6,FALSE)*50) -> 1.972333034e-05 | O46: 1 | P46: 23900 | Q46: 440 | R46: =(P46-Q46)/(VLOOKUP(A46,GDP!A$5:F$41,6,FALSE)*39) -> 0.0004394200663 | V46: 2 | W46: 7000 | X46: 2222 | Y46: =(W46-X46)/(VLOOKUP(A46,GDP!A$5:F$41,6,FALSE)*39) -> 8.949484555e-05 | Z46: 280 | AA46: 140 | AB46: =(Z46-AA46)/(VLOOKUP(A46,GDP!A$5:F$41,6,FALSE)*50) -> 2.045382406e-06 | AC46: 1
A47: Sweden | B47: 0 | C47: 0 | D47: =(B47-C47)/(VLOOKUP(A47,GDP!A$5:F$41,6,FALSE)*39) -> 0 | H47: 0 | I47: 150 | J47: 79 | K47: =(I47-J47)/(VLOOKUP(A47,GDP!A$5:F$41,6,FALSE)*39) -> 3.39676141e-06 | O47: 1 | P47: 390 | Q47: 120 | R47: =(P47-Q47)/(VLOOKUP(A47,GDP!A$5:F$41,6,FALSE)*39) -> 1.29172617e-05 | V47: 1 | W47: 4100 | X47: 1100 | Y47: =(W47-X47)/(VLOOKUP(A47,GDP!A$5:F$41,6,FALSE)*39) -> 0.00014352513 | AC47: 2
A49: *NatCatService data from MunichRe were taken from MunichRe's website in April 2020.

Sheet Exposure_Hazard
A1: HAZARD&EXPOSURE EARTHQUAKE | I1: Return to Intro tab
A3: Source link | B3: https://drmkc.jrc.ec.europa.eu/risk-data-hub/
A4: Data | B4: RISK DATA HUB
B5: See source below for Earthquake*
B6: See source below for Flood**
B7: See source below for Wildfire***
B8: WISC and ESPON for windstorm
A9: Legend
A10: 0 | B10: no risk
A11: 1 | B11: low risk
A12: 2 | B12: low/medium risk
A13: 3 | B13: medium/high risk
A14: 4 | B14: high risk
A15: n/a | B15: not available
C16: Earthquake | I16: Flood | M16: Wildfire | Q16: Windstorm
A17: ISO Code | B17: Country | C17: Intensity scale VI (Light potential damage zones) (Residential and commercial km2) | D17: Intensity scale VII (Moderate potential damage zones) (Residential and commercial km2) | E17: Intensity scale VIII (Heavy potential damage zones) (Residential and commercial km2) | F17: Economic value of residential and commercial square kilometres impacted by earthquake hazard normalised by GDP | G17: Score based on ESPON maps | H17: Final Score Earthquake | I17: 200 return period (Residential and commercial km2) | J17: Economic value of residential and commercial square kilometres impacted by flood hazard normalised by GDP | K17: Score based on ESPON maps | L17: Final Score Flood | M17: (Residential and commercial km2) | N17: Economic value of residential and commercial square kilometres impacted by wildfire hazard normalised by GDP | O17: Score based on ESPON maps | P17: Final Score Wildfire | Q17: Storm Severity Index (SSI) | S17: Score based on ESPON maps | T17: Final Score Windstorm
A18: AT | B18: Austria | C18: 182.040844 | D18: 9.673188 | E18: 0 | F18: =(0.1*C18+0.3*D18+0.6*E18)/(VLOOKUP(B18,'Country area'!A$7:B$36,2,FALSE)) -> 0.0002516248501 | H18: =IF(F18=0,0,IF(F18<0.0005,1,IF(F18<0.001,2,IF(F18<0.005,3,4)))) -> 1 | I18: 97.952301 | J18: =I18/VLOOKUP(B18,'Country area'!A$6:B$36,2,FALSE) -> 0.001167780982 | L18: =IF(J18=0,0,IF(J18<0.0005,1,IF(J18<0.001,2,IF(J18<0.005,3,4)))) -> 3 | M18: n/a | N18: n/a | O18: 2 | P18: 2 | Q18: n/a | S18: 2 | T18: 2
A19: BE | B19: Belgium | C19: 98.567733 | D19: 17.431909 | E19: 0 | F19: =(0.1*C19+0.3*D19+0.6*E19)/(VLOOKUP(B19,'Country area'!A$7:B$36,2,FALSE)) -> 0.0004941482476 | H19: =IF(F19=0,0,IF(F19<0.0005,1,IF(F19<0.001,2,IF(F19<0.005,3,4)))) -> 1 | I19: 66.093671 | J19: =I19/VLOOKUP(B19,'Country area'!A$6:B$36,2,FALSE) -> 0.00216487622 | L19: =IF(J19=0,0,IF(J19<0.0005,1,IF(J19<0.001,2,IF(J19<0.005,3,4)))) -> 3 | M19: 18.70006701 | N19: =M19/VLOOKUP(B19,'Country area'!A$6:B$36,2,FALSE) -> 0.000612514478 | P19: =IF(N19=0,0,IF(N19<0.0005,1,IF(N19<0.001,2,IF(N19<0.005,3,4)))) -> 2 | Q19: 148493210.5 | R19: =Q19*('Country area'!B8/('Country area'!B8+'Country area'!B26+'Country area'!B13+'Country area'!B28))/VLOOKUP(B19,GDP!A$5:F$41,6,FALSE) -> 73.68434777 | T19: =IF(R19=0,0,IF(R19<50,1,IF(R19<100,2,IF(R19<150,3,4)))) -> 2
A20: BG | B20: Bulgaria | C20: 319.105965 | D20: 280.233099 | E20: 0 | F20: =(0.1*C20+0.3*D20+0.6*E20)/(VLOOKUP(B20,'Country area'!A$7:B$36,2,FALSE)) -> 0.001044869605 | H20: 3 | I20: 26.18717 | J20: =I20/VLOOKUP(B20,'Country area'!A$6:B$36,2,FALSE) -> 0.0002359204505 | L20: 1 | M20: 54.05107302 | N20: =M20/VLOOKUP(B20,'Country area'!A$6:B$36,2,FALSE) -> 0.0004869466038 | P20: =IF(N20=0,0,IF(N20<0.0005,1,IF(N20<0.001,2,IF(N20<0.005,3,4)))) -> 1 | Q20: n/a | S20: 1 | T20: 1
A21: HR | B21: Croatia | C21: 106.169151 | D21: 66.066435 | E21: 0 | F21: =(0.1*C21+0.3*D21+0.6*E21)/(VLOOKUP(B21,'Country area'!A$7:B$36,2,FALSE)) -> 0.0005378484821 | H21: 2 | I21: 34.726936 | J21: =I21/VLOOKUP(B21,'Country area'!A$6:B$36,2,FALSE) -> 0.0006136585262 | L21: 2 | M21: 48.61579402 | N21: =M21/VLOOKUP(B21,'Country area'!A$6:B$36,2,FALSE) -> 0.0008590880725 | P21: 2 | Q21: n/a | S21: 1 | T21: 1
A22: CY | B22: Cyprus | C22: 0 | D22: 39.632686 | E22: 22.766713 | F22: =(0.1*C22+0.3*D22+0.6*E22)/(VLOOKUP(B22,'Country area'!A$7:B$36,2,FALSE)) -> 0.002762144173 | H22: 3 | I22: n/a | J22: n/a | K22: 1 | L22: 1 | M22: 12.43019303 | N22: =M22/VLOOKUP(B22,'Country area'!A$6:B$36,2,FALSE) -> 0.001343804652 | P22: 3 | Q22: n/a | S22: 1 | T22: 1
A23: CZ | B23: Czech Republic | C23: 1.5152 | D23: 0 | E23: 0 | F23: =(0.1*C23+0.3*D23+0.6*E23)/(VLOOKUP(B23,'Country area'!A$7:B$36,2,FALSE)) -> 1.921136047e-06 | H23: 1 | I23: 62.660479 | J23: =I23/VLOOKUP(B23,'Country area'!A$6:B$36,2,FALSE) -> 0.0007944779891 | L23: 2 | M23: 0.259729 | N23: =M23/VLOOKUP(B23,'Country area'!A$6:B$36,2,FALSE) -> 3.293127932e-06 | P23: 1 | Q23: n/a | S23: 2 | T23: 2
A24: DK | B24: Denmark | C24: n/a | D24: n/a | E24: n/a | F24: n/a | G24: 0 | H24: 0 | I24: 1.093322 | J24: =I24/VLOOKUP(B24,'Country area'!A$6:B$36,2,FALSE) -> 2.547348555e-05 | L24: 1 | M24: 0.76916 | N24: =M24/VLOOKUP(B24,'Country area'!A$6:B$36,2,FALSE) -> 1.792078285e-05 | P24: 1 | Q24: 148493210.5 | R24: =Q24*('Country area'!B13/('Country area'!B13+'Country area'!B26+'Country area'!B8+'Country area'!B28))/VLOOKUP(B24,GDP!A$5:F$41,6,FALSE) -> 157.9666663 | T24: =IF(R24=0,0,IF(R24<50,1,IF(R24<100,2,IF(R24<150,3,4)))) -> 4
A25: EE | B25: Estonia | C25: n/a | D25: n/a | E25: n/a | F25: n/a | G25: 0 | H25: 0 | I25: 2.23 | J25: =I25/VLOOKUP(B25,'Country area'!A$6:B$36,2,FALSE) -> 4.918394354e-05 | L25: 1 | M25: n/a | N25: n/a | O25: 2 | P25: 2 | Q25: n/a | S25: 2 | T25: 2
A26: FI | B26: Finland | C26: n/a | D26: n/a | E26: n/a | F26: n/a | G26: 0 | H26: 0 | I26: 25.985873 | J26: =I26/VLOOKUP(B26,'Country area'!A$6:B$36,2,FALSE) -> 7.677906042e-05 | L26: 1 | M26: 2.678671001 | N26: =M26/VLOOKUP(B26,'Country area'!A$6:B$36,2,FALSE) -> 7.914525044e-06 | P26: 1 | Q26: 94237094.94 | R26: =Q26*('Country area'!B15/('Country area'!B15+'Country area'!B36+'Country area'!B29))/VLOOKUP(B26,GDP!A$5:F$41,6,FALSE) -> 84.94974869 | T26: =IF(R26=0,0,IF(R26<50,1,IF(R26<100,2,IF(R26<150,3,4)))) -> 2
A27: FR | B27: France | C27: 380.752348 | D27: 56.720331 | E27: 0 | F27: =(0.1*C27+0.3*D27+0.6*E27)/(VLOOKUP(B27,'Country area'!A$7:B$36,2,FALSE)) -> 0.0001003326141 | H27: 1 | I27: 389.160317 | J27: =I27/VLOOKUP(B27,'Country area'!A$6:B$36,2,FALSE) -> 0.0007087407223 | L27: 2 | M27: 312.9339212 | N27: =M27/VLOOKUP(B27,'Country area'!A$6:B$36,2,FALSE) -> 0.0005699168277 | P27: 2 | Q27: 123456657.1 | R27: =Q27/VLOOKUP(B27,GDP!A$5:F$41,6,FALSE) -> 45.92686318 | T27: =IF(R27=0,0,IF(R27<50,1,IF(R27<100,2,IF(R27<150,3,4)))) -> 1
A28: DE | B28: Germany | C28: 329.10172 | D28: 63.112008 | E28: 4.414547 | F28: =(0.1*C28+0.3*D28+0.6*E28)/(VLOOKUP(B28,'Country area'!A$7:B$36,2,FALSE)) -> 0.0001523924789 | H28: 1 | I28: 451.934539 | J28: =I28/VLOOKUP(B28,'Country area'!A$6:B$36,2,FALSE) -> 0.001263869733 | L28: 3 | M28: 4.355088003 | N28: =M28/VLOOKUP(B28,'Country area'!A$6:B$36,2,FALSE) -> 1.21793389e-05 | P28: 1 | Q28: 86508074.25 | R28: =Q28/VLOOKUP(B28,GDP!A$5:F$41,6,FALSE) -> 22.63457359 | T28: 1
A29: EL | B29: Greece | C29: 6.87963 | D29: 211.568081 | E29: 116.248971 | F29: =(0.1*C29+0.3*D29+0.6*E29)/(VLOOKUP(B29,'Country area'!A$7:B$36,2,FALSE)) -> 0.001014760305 | H29: 3 | I29: 8.443703 | J29: =I29/VLOOKUP(B29,'Country area'!A$6:B$36,2,FALSE) -> 6.398683692e-05 | L29: 1 | M29: 65.02911602 | N29: =M29/VLOOKUP(B29,'Country area'!A$6:B$36,2,FALSE) -> 0.0004927941499 | P29: 1 | Q29: n/a | S29: 1 | T29: 1
A30: HU | B30: Hungary | C30: 102.731173 | D30: 3.942561 | E30: 0 | F30: =(0.1*C30+0.3*D30+0.6*E30)/(VLOOKUP(B30,'Country area'!A$7:B$36,2,FALSE)) -> 0.0001231418424 | H30: 1 | I30: 107.988728 | J30: =I30/VLOOKUP(B30,'Country area'!A$6:B$36,2,FALSE) -> 0.001160794668 | L30: 3 | M30: 2.963043002 | N30: =M30/VLOOKUP(B30,'Country area'!A$6:B$36,2,FALSE) -> 3.185040312e-05 | P30: 1 | Q30: n/a | S30: 1 | T30: 1
A31: IS | B31: Iceland | C31: 0.882846 | D31: 2.391051 | E31: 10.602589 | F31: =(0.1*C31+0.3*D31+0.6*E31)/(VLOOKUP(B31,'Country area'!A$7:B$36,2,FALSE)) -> 6.958401262e-05 | H31: 1 | I31: n/a | J31: n/a | K31: 1 | L31: 1 | M31: n/a | N31: n/a | O31: n/a | P31: n/a | Q31: n/a | S31: n/a | T31: n/a
A32: IE | B32: Ireland | C32: n/a | D32: n/a | E32: n/a | F32: n/a | G32: 0 | H32: 0 | I32: 7.042366 | J32: =I32/VLOOKUP(B32,'Country area'!A$6:B$36,2,FALSE) -> 0.0001002044109 | L32: 1 | M32: 1.865438003 | N32: =M32/VLOOKUP(B32,'Country area'!A$6:B$36,2,FALSE) -> 2.654294256e-05 | P32: 1 | Q32: n/a | S32: 3 | T32: 3
A33: IT | B33: Italy | C33: 493.321635 | D33: 729.7345 | E33: 70.252922 | F33: =(0.1*C33+0.3*D33+0.6*E33)/(VLOOKUP(B33,'Country area'!A$7:B$36,2,FALSE)) -> 0.001030079866 | H33: 3 | I33: 145.40274 | J33: =I33/VLOOKUP(B33,'Country area'!A$6:B$36,2,FALSE) -> 0.0004825205416 | L33: 1 | M33: 268.1985742 | N33: =M33/VLOOKUP(B33,'Country area'!A$6:B$36,2,FALSE) -> 0.0008900198255 | P33: 2 | Q33: n/a | S33: 2 | T33: 2
A34: LV | B34: Latvia | C34: n/a | D34: n/a | E34: n/a | F34: n/a | G34: 0 | H34: 0 | I34: 14.080103 | J34: =I34/VLOOKUP(B34,'Country area'!A$6:B$36,2,FALSE) -> 0.0002183300202 | L34: 1 | M34: 0.666168999 | N34: =M34/VLOOKUP(B34,'Country area'!A$6:B$36,2,FALSE) -> 1.032980305e-05 | P34: 1 | Q34: n/a | S34: 2 | T34: 2
A35: LT | B35: Lithuania | C35: n/a | D35: n/a | E35: n/a | F35: n/a | G35: 0 | H35: 0 | I35: 7.03467 | J35: =I35/VLOOKUP(B35,'Country area'!A$6:B$36,2,FALSE) -> 0.0001077515853 | L35: 1 | M35: n/a | N35: n/a | O35: 2 | P35: 2 | Q35: n/a | S35: 2 | T35: 2
A36: LI | B36: Liechstenstein | C36: 0.958665 | D36: 0 | E36: 0 | F36: n/a | H36: n/a | I36: 0.886154 | J36: n/a | L36: n/a | M36: n/a | N36: n/a | O36: n/a | P36: n/a | Q36: n/a | S36: n/a | T36: n/a
A37: LU | B37: Luxembourg | C37: 0.073262 | D37: 0 | E37: 0 | F37: =(0.1*C37+0.3*D37+0.6*E37)/(VLOOKUP(B37,'Country area'!A$7:B$36,2,FALSE)) -> 2.828648649e-06 | H37: 1 | I37: 2.106758 | J37: =I37/VLOOKUP(B37,'Country area'!A$6:B$36,2,FALSE) -> 0.0008134200772 | L37: 2 | M37: n/a | N37: n/a | O37: 2 | P37: 2 | Q37: 148493210.5 | R37: =Q37*('Country area'!B26/('Country area'!B26+'Country area'!B13+'Country area'!B28+'Country area'!B8))/VLOOKUP(B37,GDP!A$5:F$41,6,FALSE) -> 47.83305879 | T37: =IF(R37=0,0,IF(R37<50,1,IF(R37<100,2,IF(R37<150,3,4)))) -> 1
A38: MT | B38: Malta | C38: n/a | D38: n/a | E38: n/a | F38: n/a | G38: 2 | H38: 2 | I38: n/a | J38: n/a | K38: 1 | L38: 1 | M38: n/a | N38: n/a | O38: 3 | P38: 3 | Q38: n/a | S38: 1 | T38: 1
A39: NL | B39: Netherlands | C39: 58.911941 | D39: 0 | E39: 0 | F39: =(0.1*C39+0.3*D39+0.6*E39)/(VLOOKUP(B39,'Country area'!A$7:B$36,2,FALSE)) -> 0.0001418197906 | H39: 1 | I39: 266.437828 | J39: =I39/VLOOKUP(B39,'Country area'!A$6:B$36,2,FALSE) -> 0.006414006452 | L39: 4 | M39: 5.026794001 | N39: =M39/VLOOKUP(B39,'Country area'!A$6:B$36,2,FALSE) -> 0.0001210109292 | P39: 1 | Q39: 148493210.5 | R39: =Q39*('Country area'!B28/('Country area'!B28+'Country area'!B8+'Country area'!B26+'Country area'!B13))/VLOOKUP(B39,GDP!A$5:F$41,6,FALSE) -> 59.52462205 | T39: =IF(R39=0,0,IF(R39<50,1,IF(R39<100,2,IF(R39<150,3,4)))) -> 2
A40: NO | B40: Norway | C40: 1.31617 | D40: 0 | E40: 0 | F40: =(0.1*C40+0.3*D40+0.6*E40)/(VLOOKUP(B40,'Country area'!A$7:B$36,2,FALSE)) -> 2.105140758e-07 | H40: 1 | I40: 9.559436 | J40: =I40/VLOOKUP(B40,'Country area'!A$6:B$36,2,FALSE) -> 1.528978654e-05 | L40: 1 | M40: 1.180416 | N40: =M40/VLOOKUP(B40,'Country area'!A$6:B$36,2,FALSE) -> 1.888009781e-06 | P40: 1 | Q40: 94237094.94 | R40: =Q40*('Country area'!B29/('Country area'!B29+'Country area'!B36+'Country area'!B15))/VLOOKUP(B40,GDP!A$5:F$41,6,FALSE) -> 99.66993304 | T40: =IF(R40=0,0,IF(R40<50,1,IF(R40<100,2,IF(R40<150,3,4)))) -> 2
A41: PL | B41: Poland | C41: 7.506036 | D41: 0 | E41: 0 | F41: =(0.1*C41+0.3*D41+0.6*E41)/(VLOOKUP(B41,'Country area'!A$7:B$36,2,FALSE)) -> 2.400548804e-06 | H41: 1 | I41: 132.399775 | J41: =I41/VLOOKUP(B41,'Country area'!A$6:B$36,2,FALSE) -> 0.0004234353812 | L41: 1 | M41: 2.128335003 | N41: =M41/VLOOKUP(B41,'Country area'!A$6:B$36,2,FALSE) -> 6.806751321e-06 | P41: 1 | Q41: n/a | S41: 3 | T41: 3
A42: PT | B42: Portugal | C42: 55.998307 | D42: 74.848753 | E42: 0 | F42: =(0.1*C42+0.3*D42+0.6*E42)/(VLOOKUP(B42,'Country area'!A$7:B$36,2,FALSE)) -> 0.0003041938425 | H42: 1 | I42: 2.615265 | J42: =I42/VLOOKUP(B42,'Country area'!A$6:B$36,2,FALSE) -> 2.835725963e-05 | L42: 1 | M42: 263.0891032 | N42: =M42/VLOOKUP(B42,'Country area'!A$6:B$36,2,FALSE) -> 0.002852669234 | P42: 3 | Q42: 108372744.4 | R42: =Q42*('Country area'!B31/('Country area'!B31+'Country area'!B35))/VLOOKUP(B42,GDP!A$5:F$41,6,FALSE) -> 71.82337797 | T42: =IF(R42=0,0,IF(R42<50,1,IF(R42<100,2,IF(R42<150,3,4)))) -> 2
A43: RO | B43: Romania | C43: 519.839725 | D43: 627.98842 | E43: 0 | F43: =(0.1*C43+0.3*D43+0.6*E43)/(VLOOKUP(B43,'Country area'!A$7:B$36,2,FALSE)) -> 0.00100830746 | H43: 3 | I43: 92.455808 | J43: =I43/VLOOKUP(B43,'Country area'!A$6:B$36,2,FALSE) -> 0.0003878179866 | L43: 1 | M43: 13.77929501 | N43: =M43/VLOOKUP(B43,'Country area'!A$6:B$36,2,FALSE) -> 5.779905625e-05 | P43: 1 | Q43: n/a | S43: 1 | T43: 1
A44: SK | B44: Slovakia | C44: 220.017771 | D44: 4.433926 | E44: 0 | F44: =(0.1*C44+0.3*D44+0.6*E44)/(VLOOKUP(B44,'Country area'!A$7:B$36,2,FALSE)) -> 0.0004758709953 | H44: 1 | I44: 62.718549 | J44: =I44/VLOOKUP(B44,'Country area'!A$6:B$36,2,FALSE) -> 0.001279187212 | L44: 3 | M44: n/a | N44: n/a | O44: 2 | P44: 2 | Q44: n/a | S44: 1 | T44: 1
A45: SI | B45: Slovenia | C45: 12.404551 | D45: 42.634437 | E45: 0 | F45: =(0.1*C45+0.3*D45+0.6*E45)/(VLOOKUP(B45,'Country area'!A$7:B$36,2,FALSE)) -> 0.0006786353664 | H45: 2 | I45: 10.245836 | J45: =I45/VLOOKUP(B45,'Country area'!A$6:B$36,2,FALSE) -> 0.0004955664329 | L45: 1 | M45: 3.769510998 | N45: =M45/VLOOKUP(B45,'Country area'!A$6:B$36,2,FALSE) -> 0.0001823221764 | P45: 1 | Q45: n/a | S45: 1 | T45: 1
A46: ES | B46: Spain | C46: 149.411559 | D46: 0.383859 | E46: 0 | F46: =(0.1*C46+0.3*D46+0.6*E46)/(VLOOKUP(B46,'Country area'!A$7:B$36,2,FALSE)) -> 2.975938332e-05 | H46: 1 | I46: 48.308422 | J46: =I46/VLOOKUP(B46,'Country area'!A$6:B$36,2,FALSE) -> 9.548345538e-05 | L46: 1 | M46: 284.2315312 | N46: =M46/VLOOKUP(B46,'Country area'!A$6:B$36,2,FALSE) -> 0.000561794561 | P46: 2 | Q46: 108372744.4 | R46: =Q46*('Country area'!B35/('Country area'!B35+'Country area'!B31))/VLOOKUP(B46,GDP!A$5:F$41,6,FALSE) -> 66.95969771 | T46: =IF(R46=0,0,IF(R46<50,1,IF(R46<100,2,IF(R46<150,3,4)))) -> 2
A47: SE | B47: Sweden | C47: n/a | D47: n/a | E47: n/a | F47: n/a | G47: 0 | H47: 0 | I47: 34.663836 | J47: =I47/VLOOKUP(B47,'Country area'!A$6:B$36,2,FALSE) -> 7.747320475e-05 | L47: 1 | M47: 9.994473012 | N47: =M47/VLOOKUP(B47,'Country area'!A$6:B$36,2,FALSE) -> 2.233751204e-05 | P47: 1 | Q47: 94237094.94 | R47: =Q47*('Country area'!B36/('Country area'!B36+'Country area'!B29+'Country area'!B15))/VLOOKUP(B47,GDP!A$5:F$41,6,FALSE) -> 55.75212067 | T47: =IF(R47=0,0,IF(R47<50,1,IF(R47<100,2,IF(R47<150,3,4)))) -> 2
A49: *Earthquake data sources: The pan-European seismic hazard map (Giardini, D., et.al., 2013) produced in the context of SHARE project is available at http://www.efehr.org/en/home/. The GHSL settlement model grid (model that classify the human settlements on the base of the built-up and population density) was used to assess the "degree of urbanisation" and it is available at: http://data.jrc.ec.europa.eu/collection/GHSL .Corine Land Cover (g100_clc12_V18_5a), EEA 2016.
A54: **Flood data sources: The flood inundation maps are available at http://data.jrc.ec.europa.eu/collection/floods . The GHSL settlement model grid (model that classify the human settlements on the base of the built-up and population density) was used to assess the "degree of urbanisation" is available at: http://data.jrc.ec.europa.eu/collection/GHSL. Corine Land Cover (g100_clc12_V18_5a), EEA 2016.
A59: ***Wildfire data sources: Forest Fires Information system (EFFIS, 2014). The GHSL settlement model grid (model that classify the human settlements on the base of the built-up and population density) was used to assess the "degree of urbanisation" and it is available at: http://data.jrc.ec.europa.eu/collection/GHSL. Corine Land Cover (g100_clc12_V18_5a), EEA 2016.

Sheet Vulnerability
A1: VULNERABILITY | C1: Return to Intro tab
A3: Source link | B3: https://ec.europa.eu/jrc/en/publication/building-stock-inventory-assess-seismic-vulnerability-across-europe-0
B4: https://wisc.climate.copernicus.eu/wisc/#/help/products
A5: Data | B5: Palermo et al.
B6: WISC Copernicus data
A9: Legend
A10: 0 | B10: no risk
A11: 1 | B11: low risk
A12: 2 | B12: low/medium risk
A13: 3 | B13: medium/high risk
A14: 4 | B14: high risk
A15: n/a | B15: not available
C16: Earthquake | G16: Windstorm
A17: COUNTRY | B17: CNTR_CODE | C17: Building designed with no code | D17: Building designed with moderate-level code | E17: Building designed with high-level code | F17: Score | G17: Weakest outbuildings | H17: Outbuildings | I17: Strong outbuilding | J17: Weak brick structure | K17: Strong brick structure | L17: Concrete building | M17: Score
A18: AUSTRIA | B18: AT | C18: 0.832 | D18: 0.0754 | E18: 0.0926 | F18: =MROUND(C18*4+D18*2+E18*1,1) -> 4 | G18: 0 | H18: 0 | I18: 0 | J18: 0.087 | K18: 0.494 | L18: 0.419 | M18: =MROUND(G18*4+H18*4+I18*3+J18*3+K18*2+L18*1,1) -> 2
A19: BELGIUM | B19: BE | C19: 0.898 | D19: 0.0477 | E19: 0.0544 | F19: =MROUND(C19*4+D19*2+E19*1,1) -> 4 | G19: 0 | H19: 0.05 | I19: 0 | J19: 0 | K19: 0.83 | L19: 0.12 | M19: =MROUND(G19*4+H19*4+I19*3+J19*3+K19*2+L19*1,1) -> 2
A20: BULGARIA | B20: BG | C20: 0.9404 | D20: 0.0179 | E20: 0.0418 | F20: 4 | G20: 0.00668 | H20: 0.00666 | I20: 0 | J20: 0.00666 | K20: 0.67 | L20: 0.31 | M20: 2
A21: CROATIA | B21: HR | C21: 0.8752 | D21: 0.0452 | E21: 0.0796 | F21: 4 | G21: 0.095 | H21: 0.01 | I21: 0.055 | J21: 0.01 | K21: 0.63 | L21: 0.2 | M21: 2
A22: CYPRUS | B22: CY | C22: 0.1566 | D22: 0 | E22: 0.8434 | F22: 1 | G22: 0.07 | H22: 0 | I22: 0 | J22: 0 | K22: 0.05 | L22: 0.88 | M22: 1
A23: CZECH REPUBLIC | B23: CZ | C23: 0.7972 | D23: 0.1462 | E23: 0.0566 | F23: 4 | G23: 0.01 | H23: 0.01 | I23: 0 | J23: 0.05 | K23: 0.567 | L23: 0.363 | M23: 2
A24: DENMARK | B24: DK | C24: 1 | D24: 0 | E24: 0 | F24: 4 | G24: 0 | H24: 0.19 | I24: 0 | J24: 0.02 | K24: 0.59 | L24: 0.2 | M24: 2
A25: ESTONIA | B25: EE | C25: 1 | D25: 0 | E25: 0 | F25: 4
A26: FINLAND | B26: FI | C26: 1 | D26: 0 | E26: 0 | F26: 4 | G26: 0 | H26: 0.84 | I26: 0 | J26: 0.04 | K26: 0.05 | L26: 0.07 | M26: 4
A27: FRANCE | B27: FR | C27: 0.8692 | D27: 0.0463 | E27: 0.0845 | F27: 4 | G27: 0 | H27: 0 | I27: 0 | J27: 0.087 | K27: 0.494 | L27: 0.419 | M27: 2
A28: GERMANY | B28: DE | C28: 0.9192 | D28: 0.0147 | E28: 0.0661 | F28: 4 | G28: 0 | H28: 0 | I28: 0 | J28: 0.485 | K28: 0.26 | L28: 0.255 | M28: 2
A29: GREECE | B29: GR | C29: 0.8788 | D29: 0.0182 | E29: 0.103 | F29: 4 | G29: 0 | H29: 0 | I29: 0.001 | J29: 0.025 | K29: 0.023 | L29: 0.951 | M29: 1
A30: HUNGARY | B30: HU | C30: 0.8969 | D30: 0.0465 | E30: 0.0566 | F30: 4 | G30: 0.095 | H30: 0.01 | I30: 0.055 | J30: 0.01 | K30: 0.63 | L30: 0.2 | M30: 2
A31: ITALY | B31: IT | C31: 0.9239 | D31: 0.0537 | E31: 0.0225 | F31: 4 | G31: 0 | H31: 0 | I31: 0 | J31: 0.087 | K31: 0.494 | L31: 0.419 | M31: 2
A32: LATVIA | B32: LV | C32: 0.929 | D32: 0 | E32: 0.071 | F32: 4 | G32: 0.04710729808 | H32: 0.02 | I32: 0.02 | J32: 0 | K32: 0 | L32: 0.9128927019 | M32: 1
A33: LITHUANIA | B33: LT | C33: 0.9454 | D33: 0 | E33: 0.0546 | F33: 4 | G33: 0 | H33: 0.11 | I33: 0 | J33: 0.1 | K33: 0.07 | L33: 0.72 | M33: 2
A34: LUXEMBOURG | B34: LU | C34: 0.5027 | D34: 0 | E34: 0.4973 | F34: 3 | G34: 0 | H34: 0 | I34: 0 | J34: 0 | K34: 0.98 | L34: 0.02 | M34: 2
A35: MALTA | B35: MT | C35: 1 | D35: 0 | E35: 0 | F35: 4 | G35: 0 | H35: 0 | I35: 0.01 | J35: 0.01 | K35: 0.3 | L35: 0.68 | M35: 1
A36: NETHERLANDS | B36: NL | C36: 0.9335 | D36: 0 | E36: 0.0665 | F36: 4 | G36: 0 | H36: 0 | I36: 0 | J36: 0 | K36: 0.98 | L36: 0.02 | M36: 2
A37: NORWAY | B37: NO | C37: 0.9119 | D37: 0 | E37: 0.0881 | F37: 4 | G37: 0.04710729808 | H37: 0.02 | I37: 0.02 | J37: 0 | K37: 0 | L37: 0.9128927019 | M37: 1
A38: POLAND | B38: PL | C38: 1 | D38: 0 | E38: 0 | F38: 4 | G38: 0.04710729808 | H38: 0.02 | I38: 0.02 | J38: 0 | K38: 0 | L38: 0.9128927019 | M38: 1
A39: PORTUGAL | B39: PT | C39: 0.8538 | D39: 0.0178 | E39: 0.1285 | F39: 4 | G39: 0 | H39: 0.01 | I39: 0 | J39: 0 | K39: 0.46 | L39: 0.53 | M39: 1
A40: IRELAND | B40: IE | C40: 0.9597 | D40: 0 | E40: 0.0403 | F40: 4 | G40: 0 | H40: 0 | I40: 0 | J40: 0 | K40: 0.99 | L40: 0.01 | M40: 2
A41: ROMANIA | B41: RO | C41: 0.9422 | D41: 0.0361 | E41: 0.0217 | F41: 4 | G41: 0 | H41: 0.02 | I41: 0.08 | J41: 0.04 | K41: 0.42 | L41: 0.44 | M41: 2
A42: SLOVAKIA | B42: SK | C42: 0.6781 | D42: 0.0898 | E42: 0.2321 | F42: 3 | G42: 0.095 | H42: 0.01 | I42: 0.055 | J42: 0.01 | K42: 0.63 | L42: 0.2 | M42: 2
A43: SLOVENIA | B43: SI | C43: 0.8938 | D43: 0.0404 | E43: 0.0658 | F43: 4 | G43: 0 | H43: 0.001976284585 | I43: 0 | J43: 0 | K43: 0.5039525692 | L43: 0.4940711462 | M43: 2
A44: SPAIN | B44: ES | C44: 0.8087 | D44: 0.1068 | E44: 0.0845 | F44: 4 | G44: 0 | H44: 0.01 | I44: 0 | J44: 0 | K44: 0.46 | L44: 0.53 | M44: 1
A45: SWEDEN | B45: SE | C45: 0.6312 | D45: 0 | E45: 0.3688 | F45: 3 | G45: 0 | H45: 0 | I45: 0 | J45: 0 | K45: 0.98 | L45: 0.02 | M45: 2
A46: SWITZERLAND | B46: CH | C46: 0.886 | D46: 0.0619 | E46: 0.0522 | F46: 4
A47: UNITED KINGDOM | B47: UK | C47: 0.9359 | D47: 0 | E47: 0.0641 | F47: 4

Sheet Insurance coverage
A1: INSURANCE COVERAGE | C1: Return to Intro tab
A3: Source link
A4: Data | B4: NCA’s expert estimations
B5: Hudson et al. 2019; OECD 2016&2018; Insurance Europe; EC 2017; Tesselaar et al. 2020.
B6: Policy conditions: Data collected by EIOPA
A9: Legend
A10: 0 | B10: no risk
A11: 1 | B11: low risk
A12: 2 | B12: low/medium risk
A13: 3 | B13: medium/high risk
A14: 4 | B14: high risk
A15: n/a | B15: not available
C16: Earthquake | J16: Flood | Q16: Wildfire | X16: Windstorm
B17: Country | C17: Insurance penetration | D17: Score insurance penetration | E17: Deductible | F17: Limit | G17: Score policy conditions | H17: Total score | I17: Insurance scheme | J17: Insurance penetration | K17: Score insurance penetration | L17: Deductible | M17: Limit | N17: Score policy conditions | O17: Total score | P17: Insurance scheme | Q17: Insurance penetration | R17: Score insurance penetration | S17: Deductible | T17: Limit | U17: Score policy conditions | V17: Total score | W17: Insurance scheme | X17: Insurance penetration | Y17: Score insurance penetration | Z17: Deductible | AA17: Limit | AB17: Score policy conditions | AC17: Total score | AD17: Insurance scheme
A18: AT | B18: Austria | C18: low | D18: =IF(C18="very high",0,IF(C18="high",1,IF(C18="medium",2,IF(C18="low",3,IF(C18="very low",4,IF(C18="n/a","n/a",IF(C18="non-existent",4))))))) -> 3 | E18: 0.002703231733 | F18: 0.09708545356 | G18: =MROUND((IF(E18=0,0,IF(E18<0.01,1,IF(E18<0.05,2,IF(E18<0.1,3,4))))+IF(F18=1,0,IF(F18<0.5,4,IF(F18<0.7,3,IF(F18<0.9,2,1)))))/2,1) -> 3 | H18: =MROUND(IF(ISERROR(D18),G18,IF(ISERROR(G18),D18,(2*D18+G18)/3)),1) -> 3 | I18: voluntary | J18: very low | K18: =IF(J18="very high",0,IF(J18="high",1,IF(J18="medium",2,IF(J18="low",3,IF(J18="very low",4,IF(J18="n/a","n/a",IF(J18="non-existent",4))))))) -> 4 | L18: 0.002407885904 | M18: 0.1042149358 | N18: =MROUND((IF(L18=0,0,IF(L18<0.01,1,IF(L18<0.05,2,IF(L18<0.1,3,4))))+IF(M18=1,0,IF(M18<0.5,4,IF(M18<0.7,3,IF(M18<0.9,2,1)))))/2,1) -> 3 | O18: =MROUND(IF(ISERROR(K18),N18,IF(ISERROR(N18),K18,(2*K18+N18)/3)),1) -> 4 | P18: voluntary | Q18: very low | R18: =IF(Q18="very high",0,IF(Q18="high",1,IF(Q18="medium",2,IF(Q18="low",3,IF(Q18="very low",4,IF(Q18="n/a","n/a",IF(Q18="non-existent",4))))))) -> 4 | W18: voluntary | X18: very high | Y18: =IF(X18="very high",0,IF(X18="high",1,IF(X18="medium",2,IF(X18="low",3,IF(X18="very low",4,IF(X18="n/a","n/a",IF(X18="non-existent",4))))))) -> 0 | Z18: 0.002591155259 | AA18: 0.9363114951 | AB18: =MROUND((IF(Z18=0,0,IF(Z18<0.01,1,IF(Z18<0.05,2,IF(Z18<0.1,3,4))))+IF(AA18=1,0,IF(AA18<0.5,4,IF(AA18<0.7,3,IF(AA18<0.9,2,1)))))/2,1) -> 1 | AC18: =MROUND(IF(ISERROR(Y18),AB18,IF(ISERROR(AB18),Y18,(2*Y18+AB18)/3)),1) -> 0 | AD18: voluntary
A19: BE | B19: Belgium | C19: very high | D19: =IF(C19="very high",0,IF(C19="high",1,IF(C19="medium",2,IF(C19="low",3,IF(C19="very low",4,IF(C19="n/a","n/a",IF(C19="non-existent",4))))))) -> 0 | E19: 0.006551546894 | F19: 0.6517631977 | G19: =MROUND((IF(E19=0,0,IF(E19<0.01,1,IF(E19<0.05,2,IF(E19<0.1,3,4))))+IF(F19=1,0,IF(F19<0.5,4,IF(F19<0.7,3,IF(F19<0.9,2,1)))))/2,1) -> 2 | H19: =MROUND(IF(ISERROR(D19),G19,IF(ISERROR(G19),D19,(2*D19+G19)/3)),1) -> 1 | I19: compulsory by law | J19: very high | K19: =IF(J19="very high",0,IF(J19="high",1,IF(J19="medium",2,IF(J19="low",3,IF(J19="very low",4,IF(J19="n/a","n/a",IF(J19="non-existent",4))))))) -> 0 | L19: 0.00459074915 | M19: 0.6507108582 | N19: =MROUND((IF(L19=0,0,IF(L19<0.01,1,IF(L19<0.05,2,IF(L19<0.1,3,4))))+IF(M19=1,0,IF(M19<0.5,4,IF(M19<0.7,3,IF(M19<0.9,2,1)))))/2,1) -> 2 | O19: =MROUND(IF(ISERROR(K19),N19,IF(ISERROR(N19),K19,(2*K19+N19)/3)),1) -> 1 | P19: compulsory by law | Q19: n/a | R19: =IF(Q19="very high",0,IF(Q19="high",1,IF(Q19="medium",2,IF(Q19="low",3,IF(Q19="very low",4,IF(Q19="n/a","n/a",IF(Q19="non-existent",4))))))) -> n/a | W19: voluntary | X19: very high | Y19: =IF(X19="very high",0,IF(X19="high",1,IF(X19="medium",2,IF(X19="low",3,IF(X19="very low",4,IF(X19="n/a","n/a",IF(X19="non-existent",4))))))) -> 0 | Z19: 0.003752614051 | AA19: 0.6588011744 | AB19: =MROUND((IF(Z19=0,0,IF(Z19<0.01,1,IF(Z19<0.05,2,IF(Z19<0.1,3,4))))+IF(AA19=1,0,IF(AA19<0.5,4,IF(AA19<0.7,3,IF(AA19<0.9,2,1)))))/2,1) -> 2 | AC19: =MROUND(IF(ISERROR(Y19),AB19,IF(ISERROR(AB19),Y19,(2*Y19+AB19)/3)),1) -> 1 | AD19: compulsory by law
A20: BG | B20: Bulgaria | C20: n/a | D20: n/a | E20: 0.01754463131 | F20: 0.3931760054 | G20: 3 | I20: voluntary | J20: very low | K20: 4 | L20: 0.008670331275 | M20: 0.3558707148 | N20: 3 | O20: 4 | P20: voluntary | Q20: very low | R20: 4 | W20: non-existent | X20: n/a | Y20: n/a | AD20: voluntary
A21: HR | B21: Croatia | C21: very low | D21: 4 | H21: 4 | I21: voluntary | J21: medium | K21: 2 | O21: 2 | P21: voluntary | Q21: very low | R21: 4 | W21: voluntary | X21: low | Y21: 3 | AC21: 3 | AD21: voluntary
A22: CY | B22: Cyprus | C22: low | D22: 3 | E22: 0.01223236799 | F22: 0.7857913801 | G22: 2 | H22: 3 | I22: voluntary | J22: n/a | K22: n/a | P22: voluntary | Q22: non-existent | R22: 4 | W22: non-existent | X22: n/a | Y22: n/a | AD22: voluntary
A23: CZ | B23: Czech Republic | C23: very low | D23: 4 | E23: 0.005621240913 | F23: 0.7026732853 | G23: 2 | H23: 3 | I23: voluntary | J23: high | K23: 1 | L23: 0.01060949233 | M23: 0.5799790978 | N23: 3 | O23: 2 | P23: voluntary | Q23: very low | R23: 4 | W23: voluntary | X23: high | Y23: 1 | Z23: 0.006840319598 | AA23: 0.6879374253 | AB23: 2 | AC23: 1 | AD23: voluntary
A24: DK | B24: Denmark | C24: non-existent | D24: 4 | H24: 4 | I24: non-existent | J24: very high | K24: 0 | O24: 0 | P24: voluntary | Q24: very high | R24: 0 | W24: voluntary | X24: very high | Y24: 0 | Z24: 0.005400444241 | AA24: 0.944610842 | AB24: 1 | AC24: 0 | AD24: voluntary
A25: EE | B25: Estonia | C25: non-existent | D25: 4 | H25: 4 | I25: non-existent | J25: very high | K25: 0 | O25: 0 | P25: voluntary | Q25: non-existent | R25: 4 | W25: non-existent | X25: very high | Y25: 0 | Z25: 0.00181065429 | AA25: 0.8594898632 | AB25: 2 | AC25: 1 | AD25: voluntary
A26: FI | B26: Finland | C26: n/a | D26: n/a | J26: n/a | K26: n/a | P26: semi-voluntary | Q26: very high | R26: 0 | X26: very high | Y26: 0 | Z26: 0.01621615683 | AA26: 0.9417881423 | AB26: 2 | AC26: 1
A27: FR | B27: France | C27: very high | D27: 0 | E27: 0.005718526214 | F27: 0.9184957865 | G27: 1 | H27: =MROUND(IF(ISERROR(D27),G27,IF(ISERROR(G27),D27,(2*D27+G27)/3)),1) -> 0 | I27: solidarity | J27: very high | K27: 0 | L27: 0.005622413653 | M27: 0.9140792267 | N27: 1 | O27: 0 | P27: solidarity | Q27: n/a | R27: n/a | X27: very high | Y27: 0 | Z27: 0.00625937207 | AA27: 0.9084825595 | AB27: 1 | AC27: 0 | AD27: solidarity
A28: DE | B28: Germany | C28: medium | D28: 2 | E28: 0.005154603815 | F28: 0.688409051 | G28: 2 | H28: 2 | I28: voluntary | J28: medium | K28: 2 | L28: 0.002663795326 | M28: 0.6923387702 | N28: 2 | O28: 2 | P28: voluntary | Q28: medium | R28: 2 | W28: voluntary | X28: high | Y28: 1 | Z28: 0.00108089414 | AA28: 0.835864927 | AB28: 2 | AC28: 1 | AD28: voluntary
A29: EL | B29: Greece | C29: very low | D29: 4 | H29: 4 | I29: voluntary | J29: very low | K29: 4 | O29: 4 | P29: voluntary | Q29: very low | R29: 4 | W29: voluntary | X29: very low | Y29: 4 | AC29: 4 | AD29: voluntary
A30: HU | B30: Hungary | C30: high | D30: 1 | E30: 0.01324791459 | F30: 0.7705276733 | G30: 2 | H30: 1 | I30: semi-voluntary | J30: high | K30: 1 | L30: 0.01351507052 | M30: 0.8277077119 | N30: 2 | O30: 1 | P30: semi-voluntary | Q30: n/a | R30: n/a | X30: high | Y30: 1 | Z30: 0.01469747808 | AA30: 0.7917425666 | AB30: 2 | AC30: 1 | AD30: voluntary
A31: IS | B31: Iceland | C31: high | D31: 1 | H31: 1 | J31: high | K31: 1 | O31: 1 | Q31: n/a | R31: n/a | X31: high | Y31: 1 | Z31: 0.003688120487 | AA31: 0.5445083564 | AB31: 2 | AC31: 1
A32: IE | B32: Ireland | C32: non-existent | D32: 4 | H32: 4 | I32: non-existent | J32: very high | K32: 0 | O32: 0 | P32: semi-voluntary | Q32: n/a | R32: n/a | W32: voluntary | X32: very high | Y32: 0 | Z32: 0.009049124507 | AA32: 0.6318475631 | AB32: 2 | AC32: 1 | AD32: voluntary
A33: IT | B33: Italy | C33: very low | D33: 4 | E33: 0.04070708804 | F33: 0.5078224137 | G33: 3 | H33: 4 | I33: voluntary | J33: very low | K33: 4 | L33: 0.04119508549 | M33: 0.4088557534 | N33: 3 | O33: 4 | P33: voluntary | Q33: n/a | R33: n/a | X33: very low | Y33: 4 | AC33: 4 | AD33: voluntary
A34: LV | B34: Latvia | C34: very low | D34: 4 | H34: 4 | I34: voluntary | J34: n/a | K34: n/a | P34: voluntary | Q34: n/a | R34: n/a | X34: n/a | Y34: n/a
A35: LT | B35: Lithuania | C35: n/a | D35: n/a | J35: n/a | K35: n/a | P35: voluntary | Q35: n/a | R35: n/a | X35: n/a | Y35: n/a
A36: LI | B36: Liechtenstein | C36: n/a | D36: n/a | I36: voluntary | J36: n/a | K36: n/a | P36: voluntary | Q36: n/a | R36: n/a | W36: voluntary | X36: n/a | Y36: n/a | AD36: voluntary
A37: LU | B37: Luxembourg | C37: n/a | D37: n/a | I37: voluntary | J37: n/a | K37: n/a | P37: voluntary | Q37: n/a | R37: n/a | W37: voluntary | X37: very high | Y37: 0 | Z37: 0.07073982368 | AA37: 0.2790940792 | AB37: 4 | AC37: 1 | AD37: voluntary
A38: MT | B38: Malta | C38: very low | D38: 4 | E38: 0.004869050915 | F38: 0.4216034841 | G38: 3 | H38: 4 | I38: voluntary | J38: very low | K38: 4 | O38: 4 | P38: voluntary | Q38: non-existent | R38: 4 | W38: non-existent | X38: very low | Y38: 4 | AC38: 4 | AD38: voluntary
A39: NL | B39: Netherlands | C39: non-existent | D39: 4 | H39: 4 | I39: non-existent | J39: very low | K39: 4 | O39: 4 | P39: voluntary | Q39: very high | R39: 0 | W39: voluntary | X39: very high | Y39: 0 | Z39: 0.006360982633 | AA39: 0.6760018232 | AB39: 2 | AC39: 1 | AD39: voluntary
A40: NO | B40: Norway | C40: very high | D40: 0 | H40: 0 | I40: compulsory by law | J40: very high | K40: 0 | O40: 0 | P40: compulsory by law | Q40: very high | R40: 0 | W40: voluntary | X40: very high | Y40: 0 | Z40: 0.004071518309 | AA40: 0.9268403154 | AB40: 1 | AC40: 0 | AD40: compulsory by law
A41: PL | B41: Poland | C41: non-existent | D41: 4 | H41: 4 | I41: non-existent | J41: high | K41: 1 | L41: 0.005781373305 | M41: 0.8487998712 | N41: 2 | O41: 1 | P41: voluntary | Q41: n/a | R41: n/a | W41: voluntary | X41: n/a | Y41: n/a | Z41: 0.006856914569 | AA41: 0.8844677815 | AB41: 2 | AD41: voluntary
A42: PT | B42: Portugal | C42: low | D42: 3 | E42: 0.004954658703 | F42: 0.1110309384 | G42: 3 | H42: 3 | I42: voluntary | J42: low | K42: 3 | O42: 3 | P42: voluntary | Q42: n/a | R42: n/a | W42: voluntary | X42: n/a | Y42: n/a | AD42: voluntary
A43: RO | B43: Romania | C43: low | D43: 3 | E43: 0.1437921304 | F43: 0.8924126802 | G43: 3 | H43: 3 | I43: solidarity | J43: low | K43: 3 | L43: 0.0885424613 | M43: 0.9102378742 | N43: 2 | O43: 3 | P43: solidarity | Q43: n/a | R43: n/a | W43: voluntary | X43: n/a | Y43: n/a
A44: SK | B44: Slovakia | C44: very low | D44: 4 | E44: 0.01261608665 | F44: 0.6460320155 | G44: 3 | H44: 4 | I44: voluntary | J44: low | K44: 3 | L44: 0.01198557669 | M44: 0.6425487668 | N44: 3 | O44: 3 | P44: voluntary | Q44: very low | R44: 4 | W44: voluntary | X44: low | Y44: 3 | AC44: 3 | AD44: voluntary
A45: SI | B45: Slovenia | C45: n/a | D45: n/a | E45: 0.02492369937 | F45: 0.9571093903 | G45: 2 | I45: voluntary | J45: medium | K45: 2 | L45: 0.001142679243 | M45: 0.2703545347 | N45: 3 | O45: 2 | P45: voluntary | Q45: n/a | R45: n/a | W45: voluntary | X45: n/a | Y45: n/a | Z45: 0.0004316568735 | AA45: 0.9828275484 | AB45: 1 | AD45: voluntary
A46: ES | B46: Spain | C46: very high | D46: 0 | H46: 0 | I46: solidarity | J46: very high | K46: 0 | O46: 0 | P46: solidarity | Q46: n/a | R46: n/a | W46: voluntary | X46: very high | Y46: 0 | Z46: 0.00181065429 | AA46: 0.8594898632 | AB46: 2 | AC46: 1 | AD46: solidarity
A47: SE | B47: Sweden | C47: very high | D47: 0 | H47: 0 | I47: semi-voluntary | J47: very high | K47: 0 | O47: 0 | P47: semi-voluntary | Q47: very high | R47: 0 | W47: voluntary | X47: very high | Y47: 0 | Z47: 0.0129130766 | AA47: 0.8125429125 | AB47: 2 | AC47: 1 | AD47: semi-voluntary

Sheet GDP
A1: GDP
A3: Data source: EUROSTAT | B3: https://ec.europa.eu/eurostat/databrowser/view/tec00001/default/table?lang=en
A4: Conversion rate: InforEuro (31.12.2018) | B4: 1.1387 | C4: https://ec.europa.eu/info/funding-tenders/how-eu-funding-works/information-contractors-and-beneficiaries/exchange-rate-inforeuro_en
A5: TIME | B5: 2018 | D5: 2019 | F5: 2018 USD
A6: GEO (Labels)
A7: European Union - 27 countries (from 2020) | B7: 13498257.5 | D7: 13939074.5 | F7: =B7*$B$4 -> 15370465.82
A8: European Union - 28 countries (2013-2020) | B8: 15921994.1 | D8: 16464167.6 | F8: =B8*$B$4 -> 18130374.68
A9: Euro area (EA11-1999, EA12-2001, EA13-2007, EA15-2008, EA16-2009, EA17-2011, EA18-2014, EA19-2015) | B9: 11571626 | D9: 11920174 | F9: 13176610.53
A10: Euro area - 19 countries (from 2015) | B10: 11571626 | D10: 11920174 | F10: 13176610.53
A11: Belgium | B11: 459531.6 | D11: 473085.1 | F11: 523268.6329
A12: Bulgaria | B12: 56086.9 | D12: 60675.3 | E12: p | F12: 63866.15303
A13: Czech Republic | B13: 210892.7 | D13: 223945 | F13: 240143.5175
A14: Denmark | B14: 301340.9 | D14: 310002.3 | F14: =B14*$B$4 -> 343136.8828
A15: Germany | B15: 3356410 | D15: 3449050 | F15: 3821944.067
A16: Estonia | B16: 26035.9 | D16: 28037.2 | F16: 29647.07933
A17: Ireland | B17: 326986.1 | D17: 356051.2 | F17: 372339.0721
A18: Greece | B18: 184713.6 | D18: 187456.5 | E18: p | F18: 210333.3763
A19: Spain | B19: 1202193 | D19: 1245331 | E19: p | F19: 1368937.169
A20: France | B20: 2360687 | D20: 2425708 | E20: p | F20: 2688114.287
A21: Croatia | B21: 51625.1 | D21: 53936.7 | E21: e | F21: 58785.50137
A22: Italy | B22: 1766168.2 | D22: 1787664.1 | F22: 2011135.729
A23: Cyprus | B23: 21137.9 | D23: 21943.6 | E23: p | F23: 24069.72673
A24: Latvia | B24: 29056.1 | D24: 30476.1 | F24: 33086.18107
A25: Lithuania | B25: 45264.4 | D25: 48432.8 | F25: 51542.57228
A26: Luxembourg | B26: 60053.1 | D26: 63516.3 | F26: 68382.46497
A27: Hungary | B27: 133782.2 | D27: 143826.4 | E27: p | F27: 152337.7911
A28: Malta | B28: 12402.8 | D28: 13277.3 | F28: 14123.06836
A29: Netherlands | B29: 773987 | D29: 810247 | E29: p | F29: 881338.9969
A30: Austria | B30: 385711.9 | D30: 398682.4 | F30: 439210.1405
A31: Poland | B31: 497590.1 | D31: 529029.2 | F31: 566605.8469
A32: Portugal | B32: 204304.8 | D32: 212320.6 | E32: e | F32: 232641.8758
A33: Romania | B33: 204640.5 | D33: 223337.4 | E33: p | F33: 233024.1374
A34: Slovenia | B34: 45754.8 | D34: 48006.6 | F34: 52100.99076
A35: Slovakia | B35: 89605.9 | D35: 94171.2 | F35: 102034.2383
A36: Finland | B36: 233662 | D36: 240557 | F36: 266070.9194
A37: Sweden | B37: 470673.1 | D37: 474148.2 | F37: 535955.459
A38: United Kingdom | B38: 2423736.6 | D38: 2525093.1 | F38: 2759908.866
A39: Iceland | B39: 21795.2 | D39: 21602.7 | E39: e | F39: 24818.19424
A40: Liechtenstein | B40: 5822.5 | D40: : | F40: 6630.08075
A41: Norway | B41: 367893.7 | D41: 360300.9 | F41: 418920.5562

Sheet Country area
A1: COUNTRY AREA
A3: Datasource | B3: Worldmeter | C3: How many countries in Europe? - Worldometer (worldometers.info)
A6: Country | B6: Area (km2)
A7: Austria | B7: 83879
A8: Belgium | B8: 30530
A9: Bulgaria | B9: 111000
A10: Croatia | B10: 56590
A11: Cyprus | B11: 9250
A12: Czech Republic | B12: 78870
A13: Denmark | B13: 42920
A14: Estonia | B14: 45340
A15: Finland | B15: 338450
A16: France | B16: 549087
A17: Germany | B17: 357580
A18: Greece | B18: 131960
A19: Hungary | B19: 93030
A20: Iceland | B20: 103000
A21: Ireland | B21: 70280
A22: Italy | B22: 301340
A23: Latvia | B23: 64490
A24: Liechtenstein | B24: 160
A25: Lithuania | B25: 65286
A26: Luxembourg | B26: 2590
A27: Malta | B27: 320
A28: Netherlands | B28: 41540
A29: Norway | B29: 625217.1
A30: Poland | B30: 312680
A31: Portugal | B31: 92225.59
A32: Romania | B32: 238400
A33: Slovakia | B33: 49030
A34: Slovenia | B34: 20675
A35: Spain | B35: 505935
A36: Sweden | B36: 447430
